{"text_format":"1","workbook":"xlsx","n_sheets":12,"sheets":["Overview","Episode Selection NoInc","Episode Selection Inc","Interventions - All","Interventions - Cardio","Interventions - General","Interventions - GI","Interventions - Ortho","Incentive Payments","Confirm","Incentive Payments Bk","Complete"],"not_rendered":{"charts":0,"images":2,"macros":1,"external_links":0,"defined_names":20,"comments":0,"pivot_tables":0},"unopened":[],"bounds":{"document_bytes":16777216,"sheet_cells":100000,"rows_first":2000,"rows_last":500,"rows_between":2000,"halvings":0,"cell_chars":16384,"cell_head_chars":4096},"cells_cut":0,"cells_raw":0,"read":"whole","date_system":"1900"}

{"sheet":"Overview","index":0,"n_rows":14,"n_cols":3,"rows_kept":14,"cut":false,"hidden":false,"merged":[[7,1,7,2],[5,1,5,2]]}
[]
[null,"Episode Care Improvement Program (ECIP)"]
[null,"Episode Selection and Care Partner Engagement Workbook"]
[]
[]
[null,"Be sure to 'Enable Macros' when prompted on opening this workbook, or it will not function correctly."]
[]
[null,"This Episode Selection and Care Partner Engagement Workbook is intended to accompany the ECIP Implementation Protocol Track Template to facilitate faster, easier documentation of your selected clinical episode categories, care partners, incentive distribution plan, and allowed care redesign interventions. If you have any questions or need help during the application process, please email care.redesign@crisphealth.org."]
[null,"Please answer the following question before beginning:"]
[null,"Is your hospital planning on sharing incentive payments with care partners for model year 2?"]
[null,"Yes"]
[]
[]
[null,null,"Use the buttons like the one at left throughout the workbook to navigate through the application to ensure proper functioning."]

{"sheet":"Episode Selection NoInc","index":1,"n_rows":39,"n_cols":13,"rows_kept":39,"cut":false,"hidden":false,"merged":[[0,7,1,10],[1,1,1,2],[6,4,6,12],[5,1,5,7]]}
[]
[null,"Episode Care Improvement Program (ECIP)"]
[null,"Use the buttons at right to navigate through the workbook"]
[null,"Step 1: Clinical Episode Category and Care Partner Provider Type Selection (No Incentive Distribution)"]
[]
[null,"Please indicate which clinical episode category or categories your hospital will participate in (column 'Participation'), and then select the provider types you will engage as care partners from the available categories. Use the 'Select All' and 'Clear Selection' helper buttons to quickly add or remove selections. After you've made your selections, hit 'Continue.'"]
[null,null,null,null,"Care Partner Engagement"]
[null,"Clinical Episode Group","Clinical Episode Category","Participation","Physician","Nurse","PA","PT","SNF","HHA","LTCH","Hospice","IRF"]
["AMI","Cardiology","Acute myocardial infarction (AMI)"]
["Arrhythmia","Cardiology","Cardiac arrhythmia"]
["Valve","Cardiology","Cardiac valve"]
["CHF","Cardiology","Congestive heart failure (CHF)"]
["CABG","Cardiology","Coronary artery bypass graft surgery (CABG)"]
["Pacemaker","Cardiology","Pacemaker"]
["PCI","Cardiology","Percutaneous coronary intervention (PCI)"]
["Stroke","Cardiology","Stroke"]
["Cellulitis","General","Cellulitis"]
["COPD / Asthma","General","Chronic obstructive pulmonary disease (COPD), bronchitis/asthma"]
["Renal failure","General","Renal failure"]
["Sepsis","General","Sepsis"]
["Pneumonia","General","Simple pneumonia and respiratory infections "]
["UTI","General","Urinary tract infection (UTI)"]
["GI Hemorrhage","GI","Gastrointestinal hemorrhage "]
["GI Obstruction","GI","Gastrointestinal obstruction"]
["Major Bowel Proc","GI","Major bowel procedure"]
["Back / Neck","Orthopedic","Back and neck except spinal fusion"]
["Spinal Fusion","Orthopedic","Cervical spinal fusion  / Combined anterior posterior spinal fusion / Spinal fusion (non-cervical)"]
["Fractures","Orthopedic","Fractures, femur and hip/pelvis"]
["Hip and Femur","Orthopedic","Hip and femur procedures except major joint"]
["MJR Upper","Orthopedic","Lower extremity and humerus procedure except hip, foot, femur / Major joint replacement of upper extremity"]
["MJRLE","Orthopedic","Major joint replacement of the lower extremity (MJRLE) / Double joint replacement of the lower extremity"]
[]
[]
[]
[]
[]
[]
[]
[null,"X"]

{"sheet":"Episode Selection Inc","index":2,"n_rows":39,"n_cols":15,"rows_kept":39,"cut":false,"hidden":false,"merged":[[0,8,1,11],[1,1,1,2],[6,5,6,13],[5,1,5,9]]}
[]
[null,"Episode Care Improvement Program (ECIP)"]
[null,"Use the buttons at right to navigate through the workbook"]
[null,"Step 1: Clinical Episode Category and Care Partner Provider Type Selection (Incentive Distribution)"]
[]
[null,"Please indicate which clinical episode categories your hospital will participate in (column 'Participation') and provide the distribution of incentive payments you will make between the available care partners types. If you are not planning on engaging a particular care partner type, or not distributing incentives to that care partner type, just leave the cell empty. The 'Hospital Retained Incentive' column will update automatically to reflect the remainin proportion of potential incentive payments retained by the hospital. Make sure that the distribution for each clinical episode category totals 100%, or you will be asked to correct your distributions before continuing. After you've made your elections, hit 'Continue.'"]
[null,null,null,null,null,"Care Partner Incentive Distribution"]
[null,"Clinical Episode Group","Clinical Episode Category","Participation","Hospital Retained Incentive","Physician","Nurse","PA","PT","SNF","HHA","LTCH","Hospice","IRF","Valid?"]
["AMI","Cardiology","Acute myocardial infarction (AMI)",null,{"$f":"1-SUM(electionTable20[[#This Row],[Physician]:[IRF]])","v":1},null,null,null,null,null,null,null,null,null,{"$f":"IF(D9<>\"X\",\"\",IF(AND(electionTable20[[#This Row],[Hospital Retained Incentive]]>=0,SUM(electionTable20[[#This Row],[Hospital Retained Incentive]:[IRF]])=1),\"Yes\",\"No\"))","v":""}]
["Arrhythmia","Cardiology","Cardiac arrhythmia",null,{"$f":"1-SUM(electionTable20[[#This Row],[Physician]:[IRF]])","v":1},null,null,null,null,null,null,null,null,null,{"$f":"IF(D10<>\"X\",\"\",IF(AND(electionTable20[[#This Row],[Hospital Retained Incentive]]>=0,SUM(electionTable20[[#This Row],[Hospital Retained Incentive]:[IRF]])=1),\"Yes\",\"No\"))","v":""}]
["Valve","Cardiology","Cardiac valve",null,{"$f":"1-SUM(electionTable20[[#This Row],[Physician]:[IRF]])","v":1},null,null,null,null,null,null,null,null,null,{"$f":"IF(D11<>\"X\",\"\",IF(AND(electionTable20[[#This Row],[Hospital Retained Incentive]]>=0,SUM(electionTable20[[#This Row],[Hospital Retained Incentive]:[IRF]])=1),\"Yes\",\"No\"))","v":""}]
["CHF","Cardiology","Congestive heart failure (CHF)",null,{"$f":"1-SUM(electionTable20[[#This Row],[Physician]:[IRF]])","v":1},null,null,null,null,null,null,null,null,null,{"$f":"IF(D12<>\"X\",\"\",IF(AND(electionTable20[[#This Row],[Hospital Retained Incentive]]>=0,SUM(electionTable20[[#This Row],[Hospital Retained Incentive]:[IRF]])=1),\"Yes\",\"No\"))","v":""}]
["CABG","Cardiology","Coronary artery bypass graft surgery (CABG)",null,{"$f":"1-SUM(electionTable20[[#This Row],[Physician]:[IRF]])","v":1},null,null,null,null,null,null,null,null,null,{"$f":"IF(D13<>\"X\",\"\",IF(AND(electionTable20[[#This Row],[Hospital Retained Incentive]]>=0,SUM(electionTable20[[#This Row],[Hospital Retained Incentive]:[IRF]])=1),\"Yes\",\"No\"))","v":""}]
["Pacemaker","Cardiology","Pacemaker",null,{"$f":"1-SUM(electionTable20[[#This Row],[Physician]:[IRF]])","v":1},null,null,null,null,null,null,null,null,null,{"$f":"IF(D14<>\"X\",\"\",IF(AND(electionTable20[[#This Row],[Hospital Retained Incentive]]>=0,SUM(electionTable20[[#This Row],[Hospital Retained Incentive]:[IRF]])=1),\"Yes\",\"No\"))","v":""}]
["PCI","Cardiology","Percutaneous coronary intervention (PCI)",null,{"$f":"1-SUM(electionTable20[[#This Row],[Physician]:[IRF]])","v":1},null,null,null,null,null,null,null,null,null,{"$f":"IF(D15<>\"X\",\"\",IF(AND(electionTable20[[#This Row],[Hospital Retained Incentive]]>=0,SUM(electionTable20[[#This Row],[Hospital Retained Incentive]:[IRF]])=1),\"Yes\",\"No\"))","v":""}]
["Stroke","Cardiology","Stroke",null,{"$f":"1-SUM(electionTable20[[#This Row],[Physician]:[IRF]])","v":1},null,null,null,null,null,null,null,null,null,{"$f":"IF(D16<>\"X\",\"\",IF(AND(electionTable20[[#This Row],[Hospital Retained Incentive]]>=0,SUM(electionTable20[[#This Row],[Hospital Retained Incentive]:[IRF]])=1),\"Yes\",\"No\"))","v":""}]
["Cellulitis","General","Cellulitis",null,{"$f":"1-SUM(electionTable20[[#This Row],[Physician]:[IRF]])","v":1},null,null,null,null,null,null,null,null,null,{"$f":"IF(D17<>\"X\",\"\",IF(AND(electionTable20[[#This Row],[Hospital Retained Incentive]]>=0,SUM(electionTable20[[#This Row],[Hospital Retained Incentive]:[IRF]])=1),\"Yes\",\"No\"))","v":""}]
["COPD / Asthma","General","Chronic obstructive pulmonary disease (COPD), bronchitis/asthma",null,{"$f":"1-SUM(electionTable20[[#This Row],[Physician]:[IRF]])","v":1},null,null,null,null,null,null,null,null,null,{"$f":"IF(D18<>\"X\",\"\",IF(AND(electionTable20[[#This Row],[Hospital Retained Incentive]]>=0,SUM(electionTable20[[#This Row],[Hospital Retained Incentive]:[IRF]])=1),\"Yes\",\"No\"))","v":""}]
["Renal failure","General","Renal failure",null,{"$f":"1-SUM(electionTable20[[#This Row],[Physician]:[IRF]])","v":1},null,null,null,null,null,null,null,null,null,{"$f":"IF(D19<>\"X\",\"\",IF(AND(electionTable20[[#This Row],[Hospital Retained Incentive]]>=0,SUM(electionTable20[[#This Row],[Hospital Retained Incentive]:[IRF]])=1),\"Yes\",\"No\"))","v":""}]
["Sepsis","General","Sepsis",null,{"$f":"1-SUM(electionTable20[[#This Row],[Physician]:[IRF]])","v":1},null,null,null,null,null,null,null,null,null,{"$f":"IF(D20<>\"X\",\"\",IF(AND(electionTable20[[#This Row],[Hospital Retained Incentive]]>=0,SUM(electionTable20[[#This Row],[Hospital Retained Incentive]:[IRF]])=1),\"Yes\",\"No\"))","v":""}]
["Pneumonia","General","Simple pneumonia and respiratory infections ",null,{"$f":"1-SUM(electionTable20[[#This Row],[Physician]:[IRF]])","v":1},null,null,null,null,null,null,null,null,null,{"$f":"IF(D21<>\"X\",\"\",IF(AND(electionTable20[[#This Row],[Hospital Retained Incentive]]>=0,SUM(electionTable20[[#This Row],[Hospital Retained Incentive]:[IRF]])=1),\"Yes\",\"No\"))","v":""}]
["UTI","General","Urinary tract infection (UTI)",null,{"$f":"1-SUM(electionTable20[[#This Row],[Physician]:[IRF]])","v":1},null,null,null,null,null,null,null,null,null,{"$f":"IF(D22<>\"X\",\"\",IF(AND(electionTable20[[#This Row],[Hospital Retained Incentive]]>=0,SUM(electionTable20[[#This Row],[Hospital Retained Incentive]:[IRF]])=1),\"Yes\",\"No\"))","v":""}]
["GI Hemorrhage","GI","Gastrointestinal hemorrhage ",null,{"$f":"1-SUM(electionTable20[[#This Row],[Physician]:[IRF]])","v":1},null,null,null,null,null,null,null,null,null,{"$f":"IF(D23<>\"X\",\"\",IF(AND(electionTable20[[#This Row],[Hospital Retained Incentive]]>=0,SUM(electionTable20[[#This Row],[Hospital Retained Incentive]:[IRF]])=1),\"Yes\",\"No\"))","v":""}]
["GI Obstruction","GI","Gastrointestinal obstruction",null,{"$f":"1-SUM(electionTable20[[#This Row],[Physician]:[IRF]])","v":1},null,null,null,null,null,null,null,null,null,{"$f":"IF(D24<>\"X\",\"\",IF(AND(electionTable20[[#This Row],[Hospital Retained Incentive]]>=0,SUM(electionTable20[[#This Row],[Hospital Retained Incentive]:[IRF]])=1),\"Yes\",\"No\"))","v":""}]
["Major Bowel Proc","GI","Major bowel procedure",null,{"$f":"1-SUM(electionTable20[[#This Row],[Physician]:[IRF]])","v":1},null,null,null,null,null,null,null,null,null,{"$f":"IF(D25<>\"X\",\"\",IF(AND(electionTable20[[#This Row],[Hospital Retained Incentive]]>=0,SUM(electionTable20[[#This Row],[Hospital Retained Incentive]:[IRF]])=1),\"Yes\",\"No\"))","v":""}]
["Back / Neck","Orthopedic","Back and neck except spinal fusion",null,{"$f":"1-SUM(electionTable20[[#This Row],[Physician]:[IRF]])","v":1},null,null,null,null,null,null,null,null,null,{"$f":"IF(D26<>\"X\",\"\",IF(AND(electionTable20[[#This Row],[Hospital Retained Incentive]]>=0,SUM(electionTable20[[#This Row],[Hospital Retained Incentive]:[IRF]])=1),\"Yes\",\"No\"))","v":""}]
["Spinal Fusion","Orthopedic","Cervical spinal fusion  / Combined anterior posterior spinal fusion / Spinal fusion (non-cervical)",null,{"$f":"1-SUM(electionTable20[[#This Row],[Physician]:[IRF]])","v":1},null,null,null,null,null,null,null,null,null,{"$f":"IF(D27<>\"X\",\"\",IF(AND(electionTable20[[#This Row],[Hospital Retained Incentive]]>=0,SUM(electionTable20[[#This Row],[Hospital Retained Incentive]:[IRF]])=1),\"Yes\",\"No\"))","v":""}]
["Fractures","Orthopedic","Fractures, femur and hip/pelvis",null,{"$f":"1-SUM(electionTable20[[#This Row],[Physician]:[IRF]])","v":1},null,null,null,null,null,null,null,null,null,{"$f":"IF(D28<>\"X\",\"\",IF(AND(electionTable20[[#This Row],[Hospital Retained Incentive]]>=0,SUM(electionTable20[[#This Row],[Hospital Retained Incentive]:[IRF]])=1),\"Yes\",\"No\"))","v":""}]
["Hip and Femur","Orthopedic","Hip and femur procedures except major joint",null,{"$f":"1-SUM(electionTable20[[#This Row],[Physician]:[IRF]])","v":1},null,null,null,null,null,null,null,null,null,{"$f":"IF(D29<>\"X\",\"\",IF(AND(electionTable20[[#This Row],[Hospital Retained Incentive]]>=0,SUM(electionTable20[[#This Row],[Hospital Retained Incentive]:[IRF]])=1),\"Yes\",\"No\"))","v":""}]
["MJR Upper","Orthopedic","Lower extremity and humerus procedure except hip, foot, femur / Major joint replacement of upper extremity",null,{"$f":"1-SUM(electionTable20[[#This Row],[Physician]:[IRF]])","v":1},null,null,null,null,null,null,null,null,null,{"$f":"IF(D30<>\"X\",\"\",IF(AND(electionTable20[[#This Row],[Hospital Retained Incentive]]>=0,SUM(electionTable20[[#This Row],[Hospital Retained Incentive]:[IRF]])=1),\"Yes\",\"No\"))","v":""}]
["MJRLE","Orthopedic","Major joint replacement of the lower extremity (MJRLE) / Double joint replacement of the lower extremity",null,{"$f":"1-SUM(electionTable20[[#This Row],[Physician]:[IRF]])","v":1},null,null,null,null,null,null,null,null,null,{"$f":"IF(D31<>\"X\",\"\",IF(AND(electionTable20[[#This Row],[Hospital Retained Incentive]]>=0,SUM(electionTable20[[#This Row],[Hospital Retained Incentive]:[IRF]])=1),\"Yes\",\"No\"))","v":""}]
[]
[]
[]
[]
[]
[]
[]
[null,"X"]

{"sheet":"Interventions - All","index":3,"n_rows":19,"n_cols":30,"rows_kept":19,"cut":false,"hidden":false,"merged":[[1,1,1,2],[6,1,6,6]]}
[]
[null,"Episode Care Improvement Program (ECIP)",null,null,null,null,null,null,null,null,null,null,null,null,null,null,null,null,null,null,null,"X",null,null,null,null,null,null,"(Select one)","(Select one)"]
[null,"Use the buttons at right to navigate through the workbook",null,null,null,null,null,null,null,null,null,null,null,null,null,null,null,null,null,null,null,null,null,null,null,null,null,null,"Clinical Care / Care Redesign","Standardized, evidence-based protocol implementation"]
[null,"Step 2: Allowable Interventions",null,null,null,null,null,null,null,null,null,null,null,null,null,null,null,null,null,null,null,"X",null,null,null,null,null,null,"Beneficiary / Caregiver Engagement","Enhanced coordination with post-acute care providers"]
[null,null,null,null,null,null,null,null,null,null,null,null,null,null,null,null,null,null,null,null,null,null,null,null,null,null,null,null,"Care Coordination and Care Transitions","Interdisciplinary team meetings address patients’ needs and progress."]
[null,"For episode group: All",null,null,null,null,null,null,null,null,null,null,null,null,null,null,null,null,null,null,null,null,null,null,null,null,null,null,null,"Pharmacists embedded on unit"]
[null,"Enter any clinical interventions here that will apply to all selected episode categories. If this does not apply, simply press 'Skip' to move on to episode-specific interventions.  Otherwise, fill out the table below to explain plans for implementation of allowable ECIP interventions. If you have opted to distribute incentive payments, please include the Condition of Payment (CoP) measure that will be used to evaluate success; if you selected not to distribute incentive payments, this column will auto-populate with NA and is not applicable. Once complete, hit 'Continue' to move on to any episode-specific interventions. If you do not wish to enter episode-specific interventions (e.g. all interventions will be the same across all clinical episode groups), you may select 'Done' after completing this worksheet to move to the next section. ",null,null,null,null,null,null,null,null,null,null,null,null,null,null,null,null,null,null,null,null,null,null,null,null,null,null,null,"Other (describe)"]
[null,null,null,null,null,null,"Care Partners Engaged",null,null,null,null,null,null,null,null,null,null,null,null,null,null,null,null,null,null,null,null,null,null,"(Select one)"]
[null,"Intervention Category","Intervention","Description (< 200 words)","Tracking & Measurement","Condition of Payment (CoP)",null,"Physician","Nurse","PA","PT","SNF","HHA","LTCH","Hospice","IRF",null,null,null,null,null,null,null,null,null,null,null,null,null,"Patient education is provided pre-admission, and addresses post-discharge options."]
[null,"(Select one)","(Select one)",null,null,null,null,null,null,null,null,null,null,null,null,null,null,null,null,null,null,null,null,null,null,null,null,null,null,"Shared decision-making processes and/or tools are implemented to help patients assess treatment options."]
[null,null,null,null,null,null,null,null,null,null,null,null,null,null,null,null,null,null,null,null,null,null,null,null,null,null,null,null,null,"Methods for fostering \"health literacy\" in patient/family education are implemented."]
[null,null,null,null,null,null,null,null,null,null,null,null,null,null,null,null,null,null,null,null,null,null,null,null,null,null,null,null,null,"Patient supports, items, and/or services are furnished to beneficiaries."]
[null,null,null,null,null,null,null," ",null,null,null,null,null,null," "," ",null,null,null,null,null,null,null,null,null,null,null,null,null,"Other (describe)"]
[null,null,null,null,null,null,null,null,null,null,null,null,null,null," "," ",null,null,null,null,null,null,null,null,null,null,null,null,null,"(Select one)"]
[null,null,null,null,null,null,null,null,null,null,null,null,null,null,null,null,null,null,null,null,null,null,null,null,null,null,null,null,null,"Patient risk assessment/stratification is used to target services."]
[null,null,null,null,null,null,null,null,null,null,null,null,null,null,null,null,null,null,null,null,null,null,null,null,null,null,null,null,null,"Assignment of a care manager/ coordinator/ navigator to follow patient across care settings (e.g., to help coordinate follow-up appointments and to connect patient to needed community resources)."]
[null,null,null,null,null,null,null,null,null,null,null,null,null,null,null,null,null,null,null,null,null,null,null,null,null,null,null,null,null,"Performance of medication reconciliation."]
[null,null,null,null,null,null,null,null,null,null,null,null,null,null,null,null,null,null,null,null,null,null,null,null,null,null,null,null,null,"Remote patient consultation (i.e., telehealth) monitoring, or other technologies are used. "]
[null,null,null,null,null,null,null,null,null,null,null,null,null,null,null,null,null,null,null,null,null,null,null,null,null,null,null,null,null,"Other (describe)"]

{"sheet":"Interventions - Cardio","index":4,"n_rows":22,"n_cols":38,"rows_kept":22,"cut":false,"hidden":false,"merged":[[1,1,1,2],[6,1,6,6]]}
[]
[null,"Episode Care Improvement Program (ECIP)",null,null,null,null,null,null,null,null,null,null,null,null,null,null,null,null,null,null,null,null,null,null,null,null,"X"]
[null,"Use the buttons at right to navigate through the workbook"]
[null,"Step 2: Allowable Interventions",null,null,null,null,null,null,null,null,null,null,null,null,null,null,null,null,null,null,null,null,null,null,null,null,"X"]
[]
[null,"For episode group: Cardio"]
[null,"In the tables below right, select the anticipated Care Partners and Episode Categories for which a given intervention will apply.\n\nThen, for each of the selected clinical episode categories, fill out the table below to explain plans for implementation of allowable ECIP interventions. If you have opted to distribute incentive payments, please include the Condition of Payment (CoP) measure that will be used to evaluate success; if you selected not to distribute incentive payments, this column will auto-populate with NA and is not applicable.",null,null,null,null,null,null,null,null,null,null,null,null,null,null,null,null,null,null,null,null,null,null,null,null,null,null,null,null,null,null,null,null,null,null,"(Select one)","(Select one)"]
[null,null,null,null,null,null,"Care Partners Engaged",null,null,null,null,null,null,null,null,null,"Episode Categories",null,null,null,null,null,null,null,null,null,null,null,null,null,null,null,null,null,null,null,"Clinical Care / Care Redesign","Standardized, evidence-based protocol implementation"]
[null,"Intervention Category","Intervention","Description (< 200 words)","Tracking & Measurement","Condition of Payment (CoP)",null,"Physician","Nurse","PA","PT","SNF","HHA","LTCH","Hospice","IRF",null,"AMI","Arrhythmia","Valve","CHF","CABG","Pacemaker","PCI","Stroke",null,null,null,null,null,null,null,null,null,null,null,"Beneficiary / Caregiver Engagement","Enhanced coordination with post-acute care providers"]
[null,"(Select one)","(Select one)",null,null,null,null,null,null,null,null,null,null,null,null,null,null,null,null,null,null,null,null,null,null,null,null,null,null,null,null,null,null,null,null,null,"Care Coordination and Care Transitions","Interdisciplinary team meetings address patients’ needs and progress."]
[null,"(Select one)","(Select one)",null,null,null,null,null,null,null,null,null,null,null,null,null,null,null,null,null,null,null,null,null,null,null,null,null,null,null,null,null,null,null,null,null,null,"Pharmacists embedded on unit"]
[null,null,null,null,null,null,null,null,null,null,null,null,null,null,null,null,null,null,null,null,null,null,null,null,null,null,null,null,null,null,null,null,null,null,null,null,null,"Other (describe)"]
[null,null,null,null,null,null,null,null,null,null,null,null,null,null,null,null,null,null,null,null,null,null,null,null,null,null,null,null,null,null,null,null,null,null,null,null,null,"Patient education is provided pre-admission, and addresses post-discharge options."]
[null,null,null,null,null,null,null,null,null,null,null,null,null,null,null,null,null,null,null,null,null,null,null,null,null,null,null,null,null,null,null,null,null,null,null,null,null,"Shared decision-making processes and/or tools are implemented to help patients assess treatment options."]
[null,null,null,null,null,null,null,null,null,null,null,null,null,null,null,null,null,null,null,null,null,null,null,null,null,null,null,null,null,null,null,null,null,null,null,null,null,"Methods for fostering \"health literacy\" in patient/family education are implemented."]
[null,null,null,null,null,null,null,null,null,null,null,null,null,null,null,null,null,null,null,null,null,null,null,null,null,null,null,null,null,null,null,null,null,null,null,null,null,"Patient supports, items, and/or services are furnished to beneficiaries."]
[null,null,null,null,null,null,null,null,null,null,null,null,null,null,null,null,null,null,null,null,null,null,null,null,null,null,null,null,null,null,null,null,null,null,null,null,null,"Other (describe)"]
[null,null,null,null,null,null,null,null,null,null,null,null,null,null,null,null,null,null,null,null,null,null,null,null,null,null,null,null,null,null,null,null,null,null,null,null,null,"Patient risk assessment/stratification is used to target services."]
[null,null,null,null,null,null,null,null,null,null,null,null,null,null,null,null,null,null,null,null,null,null,null,null,null,null,null,null,null,null,null,null,null,null,null,null,null,"Assignment of a care manager/ coordinator/ navigator to follow patient across care settings (e.g., to help coordinate follow-up appointments and to connect patient to needed community resources)."]
[null,null,null,null,null,null,null,null,null,null,null,null,null,null,null,null,null,null,null,null,null,null,null,null,null,null,null,null,null,null,null,null,null,null,null,null,null,"Performance of medication reconciliation."]
[null,null,null,null,null,null,null,null,null,null,null,null,null,null,null,null,null,null,null,null,null,null,null,null,null,null,null,null,null,null,null,null,null,null,null,null,null,"Remote patient consultation (i.e., telehealth) monitoring, or other technologies are used. "]
[null,null,null,null,null,null,null,null,null,null,null,null,null,null,null,null,null,null,null,null,null,null,null,null,null,null,null,null,null,null,null,null,null,null,null,null,null,"Other (describe)"]

{"sheet":"Interventions - General","index":5,"n_rows":22,"n_cols":36,"rows_kept":22,"cut":false,"hidden":false,"merged":[[1,1,1,2],[6,1,6,6]]}
[]
[null,"Episode Care Improvement Program (ECIP)",null,null,null,null,null,null,null,null,null,null,null,null,null,null,null,null,null,null,null,null,null,null,"X"]
[null,"Use the buttons at right to navigate through the workbook"]
[null,"Step 2: Allowable Interventions",null,null,null,null,null,null,null,null,null,null,null,null,null,null,null,null,null,null,null,null,null,null,"X"]
[]
[null,"For episode group: General"]
[null,"In the tables below right, select the anticipated Care Partners and Episode Categories for which a given intervention will apply.\n\nThen, for each of the selected clinical episode categories, fill out the table below to explain plans for implementation of allowable ECIP interventions. If you have opted to distribute incentive payments, please include the Condition of Payment (CoP) measure that will be used to evaluate success; if you selected not to distribute incentive payments, this column will auto-populate with NA and is not applicable.",null,null,null,null,null,null,null,null,null,null,null,null,null,null,null,null,null,null,null,null,null,null,null,null,null,null,null,null,null,null,null,null,"(Select one)","(Select one)"]
[null,null,null,null,null,null,"Care Partners Engaged",null,null,null,null,null,null,null,null,null,"Episode Categories",null,null,null,null,null,null,null,null,null,null,null,null,null,null,null,null,null,"Clinical Care / Care Redesign","Standardized, evidence-based protocol implementation"]
[null,"Intervention Category","Intervention","Description (< 200 words)","Tracking & Measurement","Condition of Payment (CoP)",null,"Physician","Nurse","PA","PT","SNF","HHA","LTCH","Hospice","IRF",null,"Cellulitis","COPD / Asthma","Renal Failure","Sepsis","Pneumonia","UTI",null,null,null,null,null,null,null,null,null,null,null,"Beneficiary / Caregiver Engagement","Enhanced coordination with post-acute care providers"]
[null,"(Select one)","(Select one)",null,null,null,null,null,null,null,null,null,null,null,null,null,null,null,null,null,null,null,null,null,null,null,null,null,null,null,null,null,null,null,"Care Coordination and Care Transitions","Interdisciplinary team meetings address patients’ needs and progress."]
[null,"(Select one)","(Select one)",null,null,null,null,null,null,null,null,null,null,null,null,null,null,null,null,null,null,null,null,null,null,null,null,null,null,null,null,null,null,null,null,"Pharmacists embedded on unit"]
[null,null,null,null,null,null,null,null,null,null,null,null,null,null,null,null,null,null,null,null,null,null,null,null,null,null,null,null,null,null,null,null,null,null,null,"Other (describe)"]
[null,null,null,null,null,null,null,null,null,null,null,null,null,null,null,null,null,null,null,null,null,null,null,null,null,null,null,null,null,null,null,null,null,null,null,"Patient education is provided pre-admission, and addresses post-discharge options."]
[null,null,null,null,null,null,null,null,null,null,null,null,null,null,null,null,null,null,null,null,null,null,null,null,null,null,null,null,null,null,null,null,null,null,null,"Shared decision-making processes and/or tools are implemented to help patients assess treatment options."]
[null,null,null,null,null,null,null,null,null,null,null,null,null,null,null,null,null,null,null,null,null,null,null,null,null,null,null,null,null,null,null,null,null,null,null,"Methods for fostering \"health literacy\" in patient/family education are implemented."]
[null,null,null,null,null,null,null,null,null,null,null,null,null,null,null,null,null,null,null,null,null,null,null,null,null,null,null,null,null,null,null,null,null,null,null,"Patient supports, items, and/or services are furnished to beneficiaries."]
[null,null,null,null,null,null,null,null,null,null,null,null,null,null,null,null,null,null,null,null,null,null,null,null,null,null,null,null,null,null,null,null,null,null,null,"Other (describe)"]
[null,null,null,null,null,null,null,null,null,null,null,null,null,null,null,null,null,null,null,null,null,null,null,null,null,null,null,null,null,null,null,null,null,null,null,"Patient risk assessment/stratification is used to target services."]
[null,null,null,null,null,null,null,null,null,null,null,null,null,null,null,null,null,null,null,null,null,null,null,null,null,null,null,null,null,null,null,null,null,null,null,"Assignment of a care manager/ coordinator/ navigator to follow patient across care settings (e.g., to help coordinate follow-up appointments and to connect patient to needed community resources)."]
[null,null,null,null,null,null,null,null,null,null,null,null,null,null,null,null,null,null,null,null,null,null,null,null,null,null,null,null,null,null,null,null,null,null,null,"Performance of medication reconciliation."]
[null,null,null,null,null,null,null,null,null,null,null,null,null,null,null,null,null,null,null,null,null,null,null,null,null,null,null,null,null,null,null,null,null,null,null,"Remote patient consultation (i.e., telehealth) monitoring, or other technologies are used. "]
[null,null,null,null,null,null,null,null,null,null,null,null,null,null,null,null,null,null,null,null,null,null,null,null,null,null,null,null,null,null,null,null,null,null,null,"Other (describe)"]

{"sheet":"Interventions - GI","index":6,"n_rows":22,"n_cols":33,"rows_kept":22,"cut":false,"hidden":false,"merged":[[1,1,1,2],[6,1,6,6]]}
[]
[null,"Episode Care Improvement Program (ECIP)",null,null,null,null,null,null,null,null,null,null,null,null,null,null,null,null,null,null,null,"X"]
[null,"Use the buttons at right to navigate through the workbook"]
[null,"Step 2: Allowable Interventions",null,null,null,null,null,null,null,null,null,null,null,null,null,null,null,null,null,null,null,"X"]
[]
[null,"For episode group: GI"]
[null,"In the tables below right, select the anticipated Care Partners and Episode Categories for which a given intervention will apply.\n\nThen, for each of the selected clinical episode categories, fill out the table below to explain plans for implementation of allowable ECIP interventions. If you have opted to distribute incentive payments, please include the Condition of Payment (CoP) measure that will be used to evaluate success; if you selected not to distribute incentive payments, this column will auto-populate with NA and is not applicable.",null,null,null,null,null,null,null,null,null,null,null,null,null,null,null,null,null,null,null,null,null,null,null,null,null,null,null,null,null,"(Select one)","(Select one)"]
[null,null,null,null,null,null,"Care Partners Engaged",null,null,null,null,null,null,null,null,null,"Episode Categories",null,null,null,null,null,null,null,null,null,null,null,null,null,null,"Clinical Care / Care Redesign","Standardized, evidence-based protocol implementation"]
[null,"Intervention Category","Intervention","Description (< 200 words)","Tracking & Measurement","Condition of Payment (CoP)",null,"Physician","Nurse","PA","PT","SNF","HHA","LTCH","Hospice","IRF",null,"GI Hemorrhage","GI Obstruction","Major Bowel Proc",null,null,null,null,null,null,null,null,null,null,null,"Beneficiary / Caregiver Engagement","Enhanced coordination with post-acute care providers"]
[null,"(Select one)","(Select one)",null,null,null,null,null,null,null,null,null,null,null,null,null,null,null,null,null,null,null,null,null,null,null,null,null,null,null,null,"Care Coordination and Care Transitions","Interdisciplinary team meetings address patients’ needs and progress."]
[null,"(Select one)","(Select one)",null,null,null,null,null,null,null,null,null,null,null,null,null,null,null,null,null,null,null,null,null,null,null,null,null,null,null,null,null,"Pharmacists embedded on unit"]
[null,null,null,null,null,null,null,null,null,null,null,null,null,null,null,null,null,null,null,null,null,null,null,null,null,null,null,null,null,null,null,null,"Other (describe)"]
[null,null,null,null,null,null,null,null,null,null,null,null,null,null,null,null,null,null,null,null,null,null,null,null,null,null,null,null,null,null,null,null,"Patient education is provided pre-admission, and addresses post-discharge options."]
[null,null,null,null,null,null,null,null,null,null,null,null,null,null,null,null,null,null,null,null,null,null,null,null,null,null,null,null,null,null,null,null,"Shared decision-making processes and/or tools are implemented to help patients assess treatment options."]
[null,null,null,null,null,null,null,null,null,null,null,null,null,null,null,null,null,null,null,null,null,null,null,null,null,null,null,null,null,null,null,null,"Methods for fostering \"health literacy\" in patient/family education are implemented."]
[null,null,null,null,null,null,null,null,null,null,null,null,null,null,null,null,null,null,null,null,null,null,null,null,null,null,null,null,null,null,null,null,"Patient supports, items, and/or services are furnished to beneficiaries."]
[null,null,null,null,null,null,null,null,null,null,null,null,null,null,null,null,null,null,null,null,null,null,null,null,null,null,null,null,null,null,null,null,"Other (describe)"]
[null,null,null,null,null,null,null,null,null,null,null,null,null,null,null,null,null,null,null,null,null,null,null,null,null,null,null,null,null,null,null,null,"Patient risk assessment/stratification is used to target services."]
[null,null,null,null,null,null,null,null,null,null,null,null,null,null,null,null,null,null,null,null,null,null,null,null,null,null,null,null,null,null,null,null,"Assignment of a care manager/ coordinator/ navigator to follow patient across care settings (e.g., to help coordinate follow-up appointments and to connect patient to needed community resources)."]
[null,null,null,null,null,null,null,null,null,null,null,null,null,null,null,null,null,null,null,null,null,null,null,null,null,null,null,null,null,null,null,null,"Performance of medication reconciliation."]
[null,null,null,null,null,null,null,null,null,null,null,null,null,null,null,null,null,null,null,null,null,null,null,null,null,null,null,null,null,null,null,null,"Remote patient consultation (i.e., telehealth) monitoring, or other technologies are used. "]
[null,null,null,null,null,null,null,null,null,null,null,null,null,null,null,null,null,null,null,null,null,null,null,null,null,null,null,null,null,null,null,null,"Other (describe)"]

{"sheet":"Interventions - Ortho","index":7,"n_rows":22,"n_cols":36,"rows_kept":22,"cut":false,"hidden":false,"merged":[[1,1,1,2],[6,1,6,6]]}
[]
[null,"Episode Care Improvement Program (ECIP)",null,null,null,null,null,null,null,null,null,null,null,null,null,null,null,null,null,null,null,null,null,null,"X"]
[null,"Use the buttons at right to navigate through the workbook"]
[null,"Step 2: Allowable Interventions",null,null,null,null,null,null,null,null,null,null,null,null,null,null,null,null,null,null,null,null,null,null,"X"]
[]
[null,"For episode group: Orthopedics"]
[null,"In the tables below right, select the anticipated Care Partners and Episode Categories for which a given intervention will apply.\n\nThen, for each of the selected clinical episode categories, fill out the table below to explain plans for implementation of allowable ECIP interventions. If you have opted to distribute incentive payments, please include the Condition of Payment (CoP) measure that will be used to evaluate success; if you selected not to distribute incentive payments, this column will auto-populate with NA and is not applicable.",null,null,null,null,null,null,null,null,null,null,null,null,null,null,null,null,null,null,null,null,null,null,null,null,null,null,null,null,null,null,null,null,"(Select one)","(Select one)"]
[null,null,null,null,null,null,"Care Partners Engaged",null,null,null,null,null,null,null,null,null,"Episode Categories",null,null,null,null,null,null,null,null,null,null,null,null,null,null,null,null,null,"Clinical Care / Care Redesign","Standardized, evidence-based protocol implementation"]
[null,"Intervention Category","Intervention","Description (< 200 words)","Tracking & Measurement","Condition of Payment (CoP)",null,"Physician","Nurse","PA","PT","SNF","HHA","LTCH","Hospice","IRF",null,"Back / Neck","Spinal Fusion","Fractures","Hip / Femur","MJR Upper","MJRLE",null,null,null,null,null,null,null,null,null,null,null,"Beneficiary / Caregiver Engagement","Enhanced coordination with post-acute care providers"]
[null,"(Select one)","(Select one)",null,null,null,null,null,null,null,null,null,null,null,null,null,null,null,null,null,null,null,null,null,null,null,null,null,null,null,null,null,null,null,"Care Coordination and Care Transitions","Interdisciplinary team meetings address patients’ needs and progress."]
[null,"(Select one)","(Select one)",null,null,null,null,null,null,null,null,null,null,null,null,null,null,null,null,null,null,null,null,null,null,null,null,null,null,null,null,null,null,null,null,"Pharmacists embedded on unit"]
[null,null,null,null,null,null,null,null,null,null,null,null,null,null,null,null,null,null,null,null,null,null,null,null,null,null,null,null,null,null,null,null,null,null,null,"Other (describe)"]
[null,null,null,null,null,null,null,null,null,null,null,null,null,null,null,null,null,null,null,null,null,null,null,null,null,null,null,null,null,null,null,null,null,null,null,"Patient education is provided pre-admission, and addresses post-discharge options."]
[null,null,null,null,null,null,null,null,null,null,null,null,null,null,null,null,null,null,null,null,null,null,null,null,null,null,null,null,null,null,null,null,null,null,null,"Shared decision-making processes and/or tools are implemented to help patients assess treatment options."]
[null,null,null,null,null,null,null,null,null,null,null,null,null,null,null,null,null,null,null,null,null,null,null,null,null,null,null,null,null,null,null,null,null,null,null,"Methods for fostering \"health literacy\" in patient/family education are implemented."]
[null,null,null,null,null,null,null,null,null,null,null,null,null,null,null,null,null,null,null,null,null,null,null,null,null,null,null,null,null,null,null,null,null,null,null,"Patient supports, items, and/or services are furnished to beneficiaries."]
[null,null,null,null,null,null,null,null,null,null,null,null,null,null,null,null,null,null,null,null,null,null,null,null,null,null,null,null,null,null,null,null,null,null,null,"Other (describe)"]
[null,null,null,null,null,null,null,null,null,null,null,null,null,null,null,null,null,null,null,null,null,null,null,null,null,null,null,null,null,null,null,null,null,null,null,"Patient risk assessment/stratification is used to target services."]
[null,null,null,null,null,null,null,null,null,null,null,null,null,null,null,null,null,null,null,null,null,null,null,null,null,null,null,null,null,null,null,null,null,null,null,"Assignment of a care manager/ coordinator/ navigator to follow patient across care settings (e.g., to help coordinate follow-up appointments and to connect patient to needed community resources)."]
[null,null,null,null,null,null,null,null,null,null,null,null,null,null,null,null,null,null,null,null,null,null,null,null,null,null,null,null,null,null,null,null,null,null,null,"Performance of medication reconciliation."]
[null,null,null,null,null,null,null,null,null,null,null,null,null,null,null,null,null,null,null,null,null,null,null,null,null,null,null,null,null,null,null,null,null,null,null,"Remote patient consultation (i.e., telehealth) monitoring, or other technologies are used. "]
[null,null,null,null,null,null,null,null,null,null,null,null,null,null,null,null,null,null,null,null,null,null,null,null,null,null,null,null,null,null,null,null,null,null,null,"Other (describe)"]

{"sheet":"Incentive Payments","index":8,"n_rows":500,"n_cols":15,"rows_kept":500,"cut":false,"hidden":false,"merged":[[0,5,1,8],[5,1,5,12],[7,4,7,12]]}
[null,null,null,null,null,null,null,null,null,null,null,null,null,null,"x"]
[null,"Episode Care Improvement Program (ECIP)",null,null,null,null,null,null,null,null,null,null,null,null,"x"]
[null,"Use the buttons at right to navigate through the workbook",null,null,null,null,null,null,null,null,null,null,null,null,"x"]
[null,"Step 3: Incentive Payments",null,null,null,null,null,null,null,null,null,null,null,null,"x"]
[null,null,null,null,null,null,null,null,null,null,null,null,null,null,"x"]
[null,"For each care partner type within each episode category, set the weights for each condition of payment. By default, all weights are set equal - if this is acceptable, you may simply review and then hit 'Continue.' The weights for any given clinical episode category - care partner combination must equal 100%. If a particular intervention is not a condition of payment, simply enter 0 for that row.",null,null,null,null,null,null,null,null,null,null,null,null,"x"]
[null,null,null,null,null,null,null,null,null,null,null,null,null,null,"x"]
[null,null,null,null,"CoP Weights",null,null,null,null,null,null,null,null,null,"x"]
[null,"Episode Family","Episode Category","Condition of Payment (copied from previous sheets, you may edit for clarity)","Physician","Nurse","PA","PT","SNF","HHA","LTCH","Hospice","IRF",null,"x"]
[null,"Cardiology",null,null,null,null,null,null,null,null,null,null,null,null,"x"]
[null,null,"AMI",null,1,1,1,1,1,1,1,1,1,null,"x"]
[null,null,null,null,{"$f":"SUM(E11:E11)","v":1},1,1,1,1,1,1,1,1,null,"x"]
[null,null,null,null,null,null,null,null,null,null,null,null,null,null,"x"]
[null,null,"Cardiac arrhythmia",null,1,1,1,1,1,1,1,1,1,null,"x"]
[null,null,null,null,{"$f":"SUM(E14:E14)","v":1},1,1,1,1,1,1,1,1,null,"x"]
[null,null,null,null,null,null,null,null,null,null,null,null,null,null,"x"]
[null,null,"Cardiac valve",null,1,1,1,1,1,1,1,1,1,null,"x"]
[null,null,null,null,{"$f":"SUM(E17:E17)","v":1},1,1,1,1,1,1,1,1,null,"x"]
[null,null,null,null,null,null,null,null,null,null,null,null,null,null,"x"]
[null,null,"Congestive heart failure",null,1,1,1,1,1,1,1,1,1,null,"x"]
[null,null,null,null,{"$f":"SUM(E20:E20)","v":1},1,1,1,1,1,1,1,1,null,"x"]
[null,null,null,null,null,null,null,null,null,null,null,null,null,null,"x"]
[null,null,"Coronary artery bypass graft",null,1,1,1,1,1,1,1,1,1,null,"x"]
[null,null,null,null,{"$f":"SUM(E23:E23)","v":1},1,1,1,1,1,1,1,1,null,"x"]
[null,null,null,null,null,null,null,null,null,null,null,null,null,null,"x"]
[null,null,"Pacemaker",null,1,1,1,1,1,1,1,1,1,null,"x"]
[null,null,null,null,{"$f":"SUM(E26:E26)","v":1},1,1,1,1,1,1,1,1,null,"x"]
[null,null,null,null,null,null,null,null,null,null,null,null,null,null,"x"]
[null,null,"Percutaneous coronary intervention",null,1,1,1,1,1,1,1,1,1,null,"x"]
[null,null,null,null,{"$f":"SUM(E29:E29)","v":1},1,1,1,1,1,1,1,1,null,"x"]
[null,null,null,null,null,null,null,null,null,null,null,null,null,null,"x"]
[null,null,"Stroke",null,1,1,1,1,1,1,1,1,1,null,"x"]
[null,null,null,null,{"$f":"SUM(E32:E32)","v":1},1,1,1,1,1,1,1,1,null,"x"]
[null,null,null,null,null,null,null,null,null,null,null,null,null,null,"x"]
[null,"General",null,null,null,null,null,null,null,null,null,null,null,null,"x"]
[null,null,"Cellulitis",null,1,1,1,1,1,1,1,1,1,null,"x"]
[null,null,null,null,{"$f":"SUM(E36:E36)","v":1},1,1,1,1,1,1,1,1,null,"x"]
[null,null,null,null,null,null,null,null,null,null,null,null,null,null,"x"]
[null,null,"COPD / asthma",null,1,1,1,1,1,1,1,1,1,null,"x"]
[null,null,null,null,{"$f":"SUM(E39:E39)","v":1},1,1,1,1,1,1,1,1,null,"x"]
[null,null,null,null,null,null,null,null,null,null,null,null,null,null,"x"]
[null,null,"Renal failure",null,1,1,1,1,1,1,1,1,1,null,"x"]
[null,null,null,null,{"$f":"SUM(E42:E42)","v":1},1,1,1,1,1,1,1,1,null,"x"]
[null,null,null,null,null,null,null,null,null,null,null,null,null,null,"x"]
[null,null,"Sepsis",null,1,1,1,1,1,1,1,1,1,null,"x"]
[null,null,null,null,{"$f":"SUM(E45:E45)","v":1},1,1,1,1,1,1,1,1,null,"x"]
[null,null,null,null,null,null,null,null,null,null,null,null,null,null,"x"]
[null,null,"Pneumonia / respiratory infections",null,1,1,1,1,1,1,1,1,1,null,"x"]
[null,null,null,null,{"$f":"SUM(E48:E48)","v":1},1,1,1,1,1,1,1,1,null,"x"]
[null,null,null,null,null,null,null,null,null,null,null,null,null,null,"x"]
[null,null,"Urinary tract infection",null,1,1,1,1,1,1,1,1,1,null,"x"]
[null,null,null,null,{"$f":"SUM(E51:E51)","v":1},1,1,1,1,1,1,1,1,null,"x"]
[null,null,null,null,null,null,null,null,null,null,null,null,null,null,"x"]
[null,"GI",null,null,null,null,null,null,null,null,null,null,null,null,"x"]
[null,null,"Gastrointestinal hemmorhage",null,1,1,1,1,1,1,1,1,1,null,"x"]
[null,null,null,null,{"$f":"SUM(E55:E55)","v":1},1,1,1,1,1,1,1,1,null,"x"]
[null,null,null,null,null,null,null,null,null,null,null,null,null,null,"x"]
[null,null,"Gastrointestinal obstruction",null,1,1,1,1,1,1,1,1,1,null,"x"]
[null,null,null,null,{"$f":"SUM(E58:E58)","v":1},1,1,1,1,1,1,1,1,null,"x"]
[null,null,null,null,null,null,null,null,null,null,null,null,null,null,"x"]
[null,null,"Major bowel procedure",null,1,1,1,1,1,1,1,1,1,null,"x"]
[null,null,null,null,{"$f":"SUM(E61:E61)","v":1},1,1,1,1,1,1,1,1,null,"x"]
[null,null,null,null,null,null,null,null,null,null,null,null,null,null,"x"]
[null,"Orthopedics",null,null,null,null,null,null,null,null,null,null,null,null,"x"]
[null,null,"Back and neck procedures",null,1,1,1,1,1,1,1,1,1,null,"x"]
[null,null,null,null,{"$f":"SUM(E65:E65)","v":1},1,1,1,1,1,1,1,1,null,"x"]
[null,null,null,null,null,null,null,null,null,null,null,null,null,null,"x"]
[null,null,"Spinal fusion procedures",null,1,1,1,1,1,1,1,1,1,null,"x"]
[null,null,null,null,{"$f":"SUM(E68:E68)","v":1},1,1,1,1,1,1,1,1,null,"x"]
[null,null,null,null,null,null,null,null,null,null,null,null,null,null,"x"]
[null,null,"Fractures, hip and femur",null,1,1,1,1,1,1,1,1,1,null,"x"]
[null,null,null,null,{"$f":"SUM(E71:E71)","v":1},1,1,1,1,1,1,1,1,null,"x"]
[null,null,null,null,null,null,null,null,null,null,null,null,null,null,"x"]
[null,null,"Other hip & femur procedures",null,1,1,1,1,1,1,1,1,1,null,"x"]
[null,null,null,null,{"$f":"SUM(E74:E74)","v":1},1,1,1,1,1,1,1,1,null,"x"]
[null,null,null,null,null,null,null,null,null,null,null,null,null,null,"x"]
[null,null,"Upper extremity replacement / Other lower extremity procedure",null,1,1,1,1,1,1,1,1,1,null,"x"]
[null,null,null,null,{"$f":"SUM(E77:E77)","v":1},1,1,1,1,1,1,1,1,null,"x"]
[null,null,null,null,null,null,null,null,null,null,null,null,null,null,"x"]
[null,null,"MJRLE / Double replacement",null,1,1,1,1,1,1,1,1,1,null,"x"]
[null,null,null,null,{"$f":"SUM(E80:E80)","v":1},1,1,1,1,1,1,1,1,null,"x"]
[null,null,null,null,null,null,null,null,null,null,null,null,null,null,"x"]
[null,null,null,null,null,null,null,null,null,null,null,null,null,null,"x"]
[null,null,null,null,null,null,null,null,null,null,null,null,null,null,"x"]
[null,null,null,null,null,null,null,null,null,null,null,null,null,null,"x"]
[null,null,null,null,null,null,null,null,null,null,null,null,null,null,"x"]
[null,null,null,null,null,null,null,null,null,null,null,null,null,null,"x"]
[null,null,null,null,null,null,null,null,null,null,null,null,null,null,"x"]
[null,null,null,null,null,null,null,null,null,null,null,null,null,null,"x"]
[null,null,null,null,null,null,null,null,null,null,null,null,null,null,"x"]
[null,null,null,null,null,null,null,null,null,null,null,null,null,null,"x"]
[null,null,null,null,null,null,null,null,null,null,null,null,null,null,"x"]
[null,null,null,null,null,null,null,null,null,null,null,null,null,null,"x"]
[null,null,null,null,null,null,null,null,null,null,null,null,null,null,"x"]
[null,null,null,null,null,null,null,null,null,null,null,null,null,null,"x"]
[null,null,null,null,null,null,null,null,null,null,null,null,null,null,"x"]
[null,null,null,null,null,null,null,null,null,null,null,null,null,null,"x"]
[null,null,null,null,null,null,null,null,null,null,null,null,null,null,"x"]
[null,null,null,null,null,null,null,null,null,null,null,null,null,null,"x"]
[null,null,null,null,null,null,null,null,null,null,null,null,null,null,"x"]
[null,null,null,null,null,null,null,null,null,null,null,null,null,null,"x"]
[null,null,null,null,null,null,null,null,null,null,null,null,null,null,"x"]
[null,null,null,null,null,null,null,null,null,null,null,null,null,null,"x"]
[null,null,null,null,null,null,null,null,null,null,null,null,null,null,"x"]
[null,null,null,null,null,null,null,null,null,null,null,null,null,null,"x"]
[null,null,null,null,null,null,null,null,null,null,null,null,null,null,"x"]
[null,null,null,null,null,null,null,null,null,null,null,null,null,null,"x"]
[null,null,null,null,null,null,null,null,null,null,null,null,null,null,"x"]
[null,null,null,null,null,null,null,null,null,null,null,null,null,null,"x"]
[null,null,null,null,null,null,null,null,null,null,null,null,null,null,"x"]
[null,null,null,null,null,null,null,null,null,null,null,null,null,null,"x"]
[null,null,null,null,null,null,null,null,null,null,null,null,null,null,"x"]
[null,null,null,null,null,null,null,null,null,null,null,null,null,null,"x"]
[null,null,null,null,null,null,null,null,null,null,null,null,null,null,"x"]
[null,null,null,null,null,null,null,null,null,null,null,null,null,null,"x"]
[null,null,null,null,null,null,null,null,null,null,null,null,null,null,"x"]
[null,null,null,null,null,null,null,null,null,null,null,null,null,null,"x"]
[null,null,null,null,null,null,null,null,null,null,null,null,null,null,"x"]
[null,null,null,null,null,null,null,null,null,null,null,null,null,null,"x"]
[null,null,null,null,null,null,null,null,null,null,null,null,null,null,"x"]
[null,null,null,null,null,null,null,null,null,null,null,null,null,null,"x"]
[null,null,null,null,null,null,null,null,null,null,null,null,null,null,"x"]
[null,null,null,null,null,null,null,null,null,null,null,null,null,null,"x"]
[null,null,null,null,null,null,null,null,null,null,null,null,null,null,"x"]
[null,null,null,null,null,null,null,null,null,null,null,null,null,null,"x"]
[null,null,null,null,null,null,null,null,null,null,null,null,null,null,"x"]
[null,null,null,null,null,null,null,null,null,null,null,null,null,null,"x"]
[null,null,null,null,null,null,null,null,null,null,null,null,null,null,"x"]
[null,null,null,null,null,null,null,null,null,null,null,null,null,null,"x"]
[null,null,null,null,null,null,null,null,null,null,null,null,null,null,"x"]
[null,null,null,null,null,null,null,null,null,null,null,null,null,null,"x"]
[null,null,null,null,null,null,null,null,null,null,null,null,null,null,"x"]
[null,null,null,null,null,null,null,null,null,null,null,null,null,null,"x"]
[null,null,null,null,null,null,null,null,null,null,null,null,null,null,"x"]
[null,null,null,null,null,null,null,null,null,null,null,null,null,null,"x"]
[null,null,null,null,null,null,null,null,null,null,null,null,null,null,"x"]
[null,null,null,null,null,null,null,null,null,null,null,null,null,null,"x"]
[null,null,null,null,null,null,null,null,null,null,null,null,null,null,"x"]
[null,null,null,null,null,null,null,null,null,null,null,null,null,null,"x"]
[null,null,null,null,null,null,null,null,null,null,null,null,null,null,"x"]
[null,null,null,null,null,null,null,null,null,null,null,null,null,null,"x"]
[null,null,null,null,null,null,null,null,null,null,null,null,null,null,"x"]
[null,null,null,null,null,null,null,null,null,null,null,null,null,null,"x"]
[null,null,null,null,null,null,null,null,null,null,null,null,null,null,"x"]
[null,null,null,null,null,null,null,null,null,null,null,null,null,null,"x"]
[null,null,null,null,null,null,null,null,null,null,null,null,null,null,"x"]
[null,null,null,null,null,null,null,null,null,null,null,null,null,null,"x"]
[null,null,null,null,null,null,null,null,null,null,null,null,null,null,"x"]
[null,null,null,null,null,null,null,null,null,null,null,null,null,null,"x"]
[null,null,null,null,null,null,null,null,null,null,null,null,null,null,"x"]
[null,null,null,null,null,null,null,null,null,null,null,null,null,null,"x"]
[null,null,null,null,null,null,null,null,null,null,null,null,null,null,"x"]
[null,null,null,null,null,null,null,null,null,null,null,null,null,null,"x"]
[null,null,null,null,null,null,null,null,null,null,null,null,null,null,"x"]
[null,null,null,null,null,null,null,null,null,null,null,null,null,null,"x"]
[null,null,null,null,null,null,null,null,null,null,null,null,null,null,"x"]
[null,null,null,null,null,null,null,null,null,null,null,null,null,null,"x"]
[null,null,null,null,null,null,null,null,null,null,null,null,null,null,"x"]
[null,null,null,null,null,null,null,null,null,null,null,null,null,null,"x"]
[null,null,null,null,null,null,null,null,null,null,null,null,null,null,"x"]
[null,null,null,null,null,null,null,null,null,null,null,null,null,null,"x"]
[null,null,null,null,null,null,null,null,null,null,null,null,null,null,"x"]
[null,null,null,null,null,null,null,null,null,null,null,null,null,null,"x"]
[null,null,null,null,null,null,null,null,null,null,null,null,null,null,"x"]
[null,null,null,null,null,null,null,null,null,null,null,null,null,null,"x"]
[null,null,null,null,null,null,null,null,null,null,null,null,null,null,"x"]
[null,null,null,null,null,null,null,null,null,null,null,null,null,null,"x"]
[null,null,null,null,null,null,null,null,null,null,null,null,null,null,"x"]
[null,null,null,null,null,null,null,null,null,null,null,null,null,null,"x"]
[null,null,null,null,null,null,null,null,null,null,null,null,null,null,"x"]
[null,null,null,null,null,null,null,null,null,null,null,null,null,null,"x"]
[null,null,null,null,null,null,null,null,null,null,null,null,null,null,"x"]
[null,null,null,null,null,null,null,null,null,null,null,null,null,null,"x"]
[null,null,null,null,null,null,null,null,null,null,null,null,null,null,"x"]
[null,null,null,null,null,null,null,null,null,null,null,null,null,null,"x"]
[null,null,null,null,null,null,null,null,null,null,null,null,null,null,"x"]
[null,null,null,null,null,null,null,null,null,null,null,null,null,null,"x"]
[null,null,null,null,null,null,null,null,null,null,null,null,null,null,"x"]
[null,null,null,null,null,null,null,null,null,null,null,null,null,null,"x"]
[null,null,null,null,null,null,null,null,null,null,null,null,null,null,"x"]
[null,null,null,null,null,null,null,null,null,null,null,null,null,null,"x"]
[null,null,null,null,null,null,null,null,null,null,null,null,null,null,"x"]
[null,null,null,null,null,null,null,null,null,null,null,null,null,null,"x"]
[null,null,null,null,null,null,null,null,null,null,null,null,null,null,"x"]
[null,null,null,null,null,null,null,null,null,null,null,null,null,null,"x"]
[null,null,null,null,null,null,null,null,null,null,null,null,null,null,"x"]
[null,null,null,null,null,null,null,null,null,null,null,null,null,null,"x"]
[null,null,null,null,null,null,null,null,null,null,null,null,null,null,"x"]
[null,null,null,null,null,null,null,null,null,null,null,null,null,null,"x"]
[null,null,null,null,null,null,null,null,null,null,null,null,null,null,"x"]
[null,null,null,null,null,null,null,null,null,null,null,null,null,null,"x"]
[null,null,null,null,null,null,null,null,null,null,null,null,null,null,"x"]
[null,null,null,null,null,null,null,null,null,null,null,null,null,null,"x"]
[null,null,null,null,null,null,null,null,null,null,null,null,null,null,"x"]
[null,null,null,null,null,null,null,null,null,null,null,null,null,null,"x"]
[null,null,null,null,null,null,null,null,null,null,null,null,null,null,"x"]
[null,null,null,null,null,null,null,null,null,null,null,null,null,null,"x"]
[null,null,null,null,null,null,null,null,null,null,null,null,null,null,"x"]
[null,null,null,null,null,null,null,null,null,null,null,null,null,null,"x"]
[null,null,null,null,null,null,null,null,null,null,null,null,null,null,"x"]
[null,null,null,null,null,null,null,null,null,null,null,null,null,null,"x"]
[null,null,null,null,null,null,null,null,null,null,null,null,null,null,"x"]
[null,null,null,null,null,null,null,null,null,null,null,null,null,null,"x"]
[null,null,null,null,null,null,null,null,null,null,null,null,null,null,"x"]
[null,null,null,null,null,null,null,null,null,null,null,null,null,null,"x"]
[null,null,null,null,null,null,null,null,null,null,null,null,null,null,"x"]
[null,null,null,null,null,null,null,null,null,null,null,null,null,null,"x"]
[null,null,null,null,null,null,null,null,null,null,null,null,null,null,"x"]
[null,null,null,null,null,null,null,null,null,null,null,null,null,null,"x"]
[null,null,null,null,null,null,null,null,null,null,null,null,null,null,"x"]
[null,null,null,null,null,null,null,null,null,null,null,null,null,null,"x"]
[null,null,null,null,null,null,null,null,null,null,null,null,null,null,"x"]
[null,null,null,null,null,null,null,null,null,null,null,null,null,null,"x"]
[null,null,null,null,null,null,null,null,null,null,null,null,null,null,"x"]
[null,null,null,null,null,null,null,null,null,null,null,null,null,null,"x"]
[null,null,null,null,null,null,null,null,null,null,null,null,null,null,"x"]
[null,null,null,null,null,null,null,null,null,null,null,null,null,null,"x"]
[null,null,null,null,null,null,null,null,null,null,null,null,null,null,"x"]
[null,null,null,null,null,null,null,null,null,null,null,null,null,null,"x"]
[null,null,null,null,null,null,null,null,null,null,null,null,null,null,"x"]
[null,null,null,null,null,null,null,null,null,null,null,null,null,null,"x"]
[null,null,null,null,null,null,null,null,null,null,null,null,null,null,"x"]
[null,null,null,null,null,null,null,null,null,null,null,null,null,null,"x"]
[null,null,null,null,null,null,null,null,null,null,null,null,null,null,"x"]
[null,null,null,null,null,null,null,null,null,null,null,null,null,null,"x"]
[null,null,null,null,null,null,null,null,null,null,null,null,null,null,"x"]
[null,null,null,null,null,null,null,null,null,null,null,null,null,null,"x"]
[null,null,null,null,null,null,null,null,null,null,null,null,null,null,"x"]
[null,null,null,null,null,null,null,null,null,null,null,null,null,null,"x"]
[null,null,null,null,null,null,null,null,null,null,null,null,null,null,"x"]
[null,null,null,null,null,null,null,null,null,null,null,null,null,null,"x"]
[null,null,null,null,null,null,null,null,null,null,null,null,null,null,"x"]
[null,null,null,null,null,null,null,null,null,null,null,null,null,null,"x"]
[null,null,null,null,null,null,null,null,null,null,null,null,null,null,"x"]
[null,null,null,null,null,null,null,null,null,null,null,null,null,null,"x"]
[null,null,null,null,null,null,null,null,null,null,null,null,null,null,"x"]
[null,null,null,null,null,null,null,null,null,null,null,null,null,null,"x"]
[null,null,null,null,null,null,null,null,null,null,null,null,null,null,"x"]
[null,null,null,null,null,null,null,null,null,null,null,null,null,null,"x"]
[null,null,null,null,null,null,null,null,null,null,null,null,null,null,"x"]
[null,null,null,null,null,null,null,null,null,null,null,null,null,null,"x"]
[null,null,null,null,null,null,null,null,null,null,null,null,null,null,"x"]
[null,null,null,null,null,null,null,null,null,null,null,null,null,null,"x"]
[null,null,null,null,null,null,null,null,null,null,null,null,null,null,"x"]
[null,null,null,null,null,null,null,null,null,null,null,null,null,null,"x"]
[null,null,null,null,null,null,null,null,null,null,null,null,null,null,"x"]
[null,null,null,null,null,null,null,null,null,null,null,null,null,null,"x"]
[null,null,null,null,null,null,null,null,null,null,null,null,null,null,"x"]
[null,null,null,null,null,null,null,null,null,null,null,null,null,null,"x"]
[null,null,null,null,null,null,null,null,null,null,null,null,null,null,"x"]
[null,null,null,null,null,null,null,null,null,null,null,null,null,null,"x"]
[null,null,null,null,null,null,null,null,null,null,null,null,null,null,"x"]
[null,null,null,null,null,null,null,null,null,null,null,null,null,null,"x"]
[null,null,null,null,null,null,null,null,null,null,null,null,null,null,"x"]
[null,null,null,null,null,null,null,null,null,null,null,null,null,null,"x"]
[null,null,null,null,null,null,null,null,null,null,null,null,null,null,"x"]
[null,null,null,null,null,null,null,null,null,null,null,null,null,null,"x"]
[null,null,null,null,null,null,null,null,null,null,null,null,null,null,"x"]
[null,null,null,null,null,null,null,null,null,null,null,null,null,null,"x"]
[null,null,null,null,null,null,null,null,null,null,null,null,null,null,"x"]
[null,null,null,null,null,null,null,null,null,null,null,null,null,null,"x"]
[null,null,null,null,null,null,null,null,null,null,null,null,null,null,"x"]
[null,null,null,null,null,null,null,null,null,null,null,null,null,null,"x"]
[null,null,null,null,null,null,null,null,null,null,null,null,null,null,"x"]
[null,null,null,null,null,null,null,null,null,null,null,null,null,null,"x"]
[null,null,null,null,null,null,null,null,null,null,null,null,null,null,"x"]
[null,null,null,null,null,null,null,null,null,null,null,null,null,null,"x"]
[null,null,null,null,null,null,null,null,null,null,null,null,null,null,"x"]
[null,null,null,null,null,null,null,null,null,null,null,null,null,null,"x"]
[null,null,null,null,null,null,null,null,null,null,null,null,null,null,"x"]
[null,null,null,null,null,null,null,null,null,null,null,null,null,null,"x"]
[null,null,null,null,null,null,null,null,null,null,null,null,null,null,"x"]
[null,null,null,null,null,null,null,null,null,null,null,null,null,null,"x"]
[null,null,null,null,null,null,null,null,null,null,null,null,null,null,"x"]
[null,null,null,null,null,null,null,null,null,null,null,null,null,null,"x"]
[null,null,null,null,null,null,null,null,null,null,null,null,null,null,"x"]
[null,null,null,null,null,null,null,null,null,null,null,null,null,null,"x"]
[null,null,null,null,null,null,null,null,null,null,null,null,null,null,"x"]
[null,null,null,null,null,null,null,null,null,null,null,null,null,null,"x"]
[null,null,null,null,null,null,null,null,null,null,null,null,null,null,"x"]
[null,null,null,null,null,null,null,null,null,null,null,null,null,null,"x"]
[null,null,null,null,null,null,null,null,null,null,null,null,null,null,"x"]
[null,null,null,null,null,null,null,null,null,null,null,null,null,null,"x"]
[null,null,null,null,null,null,null,null,null,null,null,null,null,null,"x"]
[null,null,null,null,null,null,null,null,null,null,null,null,null,null,"x"]
[null,null,null,null,null,null,null,null,null,null,null,null,null,null,"x"]
[null,null,null,null,null,null,null,null,null,null,null,null,null,null,"x"]
[null,null,null,null,null,null,null,null,null,null,null,null,null,null,"x"]
[null,null,null,null,null,null,null,null,null,null,null,null,null,null,"x"]
[null,null,null,null,null,null,null,null,null,null,null,null,null,null,"x"]
[null,null,null,null,null,null,null,null,null,null,null,null,null,null,"x"]
[null,null,null,null,null,null,null,null,null,null,null,null,null,null,"x"]
[null,null,null,null,null,null,null,null,null,null,null,null,null,null,"x"]
[null,null,null,null,null,null,null,null,null,null,null,null,null,null,"x"]
[null,null,null,null,null,null,null,null,null,null,null,null,null,null,"x"]
[null,null,null,null,null,null,null,null,null,null,null,null,null,null,"x"]
[null,null,null,null,null,null,null,null,null,null,null,null,null,null,"x"]
[null,null,null,null,null,null,null,null,null,null,null,null,null,null,"x"]
[null,null,null,null,null,null,null,null,null,null,null,null,null,null,"x"]
[null,null,null,null,null,null,null,null,null,null,null,null,null,null,"x"]
[null,null,null,null,null,null,null,null,null,null,null,null,null,null,"x"]
[null,null,null,null,null,null,null,null,null,null,null,null,null,null,"x"]
[null,null,null,null,null,null,null,null,null,null,null,null,null,null,"x"]
[null,null,null,null,null,null,null,null,null,null,null,null,null,null,"x"]
[null,null,null,null,null,null,null,null,null,null,null,null,null,null,"x"]
[null,null,null,null,null,null,null,null,null,null,null,null,null,null,"x"]
[null,null,null,null,null,null,null,null,null,null,null,null,null,null,"x"]
[null,null,null,null,null,null,null,null,null,null,null,null,null,null,"x"]
[null,null,null,null,null,null,null,null,null,null,null,null,null,null,"x"]
[null,null,null,null,null,null,null,null,null,null,null,null,null,null,"x"]
[null,null,null,null,null,null,null,null,null,null,null,null,null,null,"x"]
[null,null,null,null,null,null,null,null,null,null,null,null,null,null,"x"]
[null,null,null,null,null,null,null,null,null,null,null,null,null,null,"x"]
[null,null,null,null,null,null,null,null,null,null,null,null,null,null,"x"]
[null,null,null,null,null,null,null,null,null,null,null,null,null,null,"x"]
[null,null,null,null,null,null,null,null,null,null,null,null,null,null,"x"]
[null,null,null,null,null,null,null,null,null,null,null,null,null,null,"x"]
[null,null,null,null,null,null,null,null,null,null,null,null,null,null,"x"]
[null,null,null,null,null,null,null,null,null,null,null,null,null,null,"x"]
[null,null,null,null,null,null,null,null,null,null,null,null,null,null,"x"]
[null,null,null,null,null,null,null,null,null,null,null,null,null,null,"x"]
[null,null,null,null,null,null,null,null,null,null,null,null,null,null,"x"]
[null,null,null,null,null,null,null,null,null,null,null,null,null,null,"x"]
[null,null,null,null,null,null,null,null,null,null,null,null,null,null,"x"]
[null,null,null,null,null,null,null,null,null,null,null,null,null,null,"x"]
[null,null,null,null,null,null,null,null,null,null,null,null,null,null,"x"]
[null,null,null,null,null,null,null,null,null,null,null,null,null,null,"x"]
[null,null,null,null,null,null,null,null,null,null,null,null,null,null,"x"]
[null,null,null,null,null,null,null,null,null,null,null,null,null,null,"x"]
[null,null,null,null,null,null,null,null,null,null,null,null,null,null,"x"]
[null,null,null,null,null,null,null,null,null,null,null,null,null,null,"x"]
[null,null,null,null,null,null,null,null,null,null,null,null,null,null,"x"]
[null,null,null,null,null,null,null,null,null,null,null,null,null,null,"x"]
[null,null,null,null,null,null,null,null,null,null,null,null,null,null,"x"]
[null,null,null,null,null,null,null,null,null,null,null,null,null,null,"x"]
[null,null,null,null,null,null,null,null,null,null,null,null,null,null,"x"]
[null,null,null,null,null,null,null,null,null,null,null,null,null,null,"x"]
[null,null,null,null,null,null,null,null,null,null,null,null,null,null,"x"]
[null,null,null,null,null,null,null,null,null,null,null,null,null,null,"x"]
[null,null,null,null,null,null,null,null,null,null,null,null,null,null,"x"]
[null,null,null,null,null,null,null,null,null,null,null,null,null,null,"x"]
[null,null,null,null,null,null,null,null,null,null,null,null,null,null,"x"]
[null,null,null,null,null,null,null,null,null,null,null,null,null,null,"x"]
[null,null,null,null,null,null,null,null,null,null,null,null,null,null,"x"]
[null,null,null,null,null,null,null,null,null,null,null,null,null,null,"x"]
[null,null,null,null,null,null,null,null,null,null,null,null,null,null,"x"]
[null,null,null,null,null,null,null,null,null,null,null,null,null,null,"x"]
[null,null,null,null,null,null,null,null,null,null,null,null,null,null,"x"]
[null,null,null,null,null,null,null,null,null,null,null,null,null,null,"x"]
[null,null,null,null,null,null,null,null,null,null,null,null,null,null,"x"]
[null,null,null,null,null,null,null,null,null,null,null,null,null,null,"x"]
[null,null,null,null,null,null,null,null,null,null,null,null,null,null,"x"]
[null,null,null,null,null,null,null,null,null,null,null,null,null,null,"x"]
[null,null,null,null,null,null,null,null,null,null,null,null,null,null,"x"]
[null,null,null,null,null,null,null,null,null,null,null,null,null,null,"x"]
[null,null,null,null,null,null,null,null,null,null,null,null,null,null,"x"]
[null,null,null,null,null,null,null,null,null,null,null,null,null,null,"x"]
[null,null,null,null,null,null,null,null,null,null,null,null,null,null,"x"]
[null,null,null,null,null,null,null,null,null,null,null,null,null,null,"x"]
[null,null,null,null,null,null,null,null,null,null,null,null,null,null,"x"]
[null,null,null,null,null,null,null,null,null,null,null,null,null,null,"x"]
[null,null,null,null,null,null,null,null,null,null,null,null,null,null,"x"]
[null,null,null,null,null,null,null,null,null,null,null,null,null,null,"x"]
[null,null,null,null,null,null,null,null,null,null,null,null,null,null,"x"]
[null,null,null,null,null,null,null,null,null,null,null,null,null,null,"x"]
[null,null,null,null,null,null,null,null,null,null,null,null,null,null,"x"]
[null,null,null,null,null,null,null,null,null,null,null,null,null,null,"x"]
[null,null,null,null,null,null,null,null,null,null,null,null,null,null,"x"]
[null,null,null,null,null,null,null,null,null,null,null,null,null,null,"x"]
[null,null,null,null,null,null,null,null,null,null,null,null,null,null,"x"]
[null,null,null,null,null,null,null,null,null,null,null,null,null,null,"x"]
[null,null,null,null,null,null,null,null,null,null,null,null,null,null,"x"]
[null,null,null,null,null,null,null,null,null,null,null,null,null,null,"x"]
[null,null,null,null,null,null,null,null,null,null,null,null,null,null,"x"]
[null,null,null,null,null,null,null,null,null,null,null,null,null,null,"x"]
[null,null,null,null,null,null,null,null,null,null,null,null,null,null,"x"]
[null,null,null,null,null,null,null,null,null,null,null,null,null,null,"x"]
[null,null,null,null,null,null,null,null,null,null,null,null,null,null,"x"]
[null,null,null,null,null,null,null,null,null,null,null,null,null,null,"x"]
[null,null,null,null,null,null,null,null,null,null,null,null,null,null,"x"]
[null,null,null,null,null,null,null,null,null,null,null,null,null,null,"x"]
[null,null,null,null,null,null,null,null,null,null,null,null,null,null,"x"]
[null,null,null,null,null,null,null,null,null,null,null,null,null,null,"x"]
[null,null,null,null,null,null,null,null,null,null,null,null,null,null,"x"]
[null,null,null,null,null,null,null,null,null,null,null,null,null,null,"x"]
[null,null,null,null,null,null,null,null,null,null,null,null,null,null,"x"]
[null,null,null,null,null,null,null,null,null,null,null,null,null,null,"x"]
[null,null,null,null,null,null,null,null,null,null,null,null,null,null,"x"]
[null,null,null,null,null,null,null,null,null,null,null,null,null,null,"x"]
[null,null,null,null,null,null,null,null,null,null,null,null,null,null,"x"]
[null,null,null,null,null,null,null,null,null,null,null,null,null,null,"x"]
[null,null,null,null,null,null,null,null,null,null,null,null,null,null,"x"]
[null,null,null,null,null,null,null,null,null,null,null,null,null,null,"x"]
[null,null,null,null,null,null,null,null,null,null,null,null,null,null,"x"]
[null,null,null,null,null,null,null,null,null,null,null,null,null,null,"x"]
[null,null,null,null,null,null,null,null,null,null,null,null,null,null,"x"]
[null,null,null,null,null,null,null,null,null,null,null,null,null,null,"x"]
[null,null,null,null,null,null,null,null,null,null,null,null,null,null,"x"]
[null,null,null,null,null,null,null,null,null,null,null,null,null,null,"x"]
[null,null,null,null,null,null,null,null,null,null,null,null,null,null,"x"]
[null,null,null,null,null,null,null,null,null,null,null,null,null,null,"x"]
[null,null,null,null,null,null,null,null,null,null,null,null,null,null,"x"]
[null,null,null,null,null,null,null,null,null,null,null,null,null,null,"x"]
[null,null,null,null,null,null,null,null,null,null,null,null,null,null,"x"]
[null,null,null,null,null,null,null,null,null,null,null,null,null,null,"x"]
[null,null,null,null,null,null,null,null,null,null,null,null,null,null,"x"]
[null,null,null,null,null,null,null,null,null,null,null,null,null,null,"x"]
[null,null,null,null,null,null,null,null,null,null,null,null,null,null,"x"]
[null,null,null,null,null,null,null,null,null,null,null,null,null,null,"x"]
[null,null,null,null,null,null,null,null,null,null,null,null,null,null,"x"]
[null,null,null,null,null,null,null,null,null,null,null,null,null,null,"x"]
[null,null,null,null,null,null,null,null,null,null,null,null,null,null,"x"]
[null,null,null,null,null,null,null,null,null,null,null,null,null,null,"x"]
[null,null,null,null,null,null,null,null,null,null,null,null,null,null,"x"]
[null,null,null,null,null,null,null,null,null,null,null,null,null,null,"x"]
[null,null,null,null,null,null,null,null,null,null,null,null,null,null,"x"]
[null,null,null,null,null,null,null,null,null,null,null,null,null,null,"x"]
[null,null,null,null,null,null,null,null,null,null,null,null,null,null,"x"]
[null,null,null,null,null,null,null,null,null,null,null,null,null,null,"x"]
[null,null,null,null,null,null,null,null,null,null,null,null,null,null,"x"]
[null,null,null,null,null,null,null,null,null,null,null,null,null,null,"x"]
[null,null,null,null,null,null,null,null,null,null,null,null,null,null,"x"]
[null,null,null,null,null,null,null,null,null,null,null,null,null,null,"x"]
[null,null,null,null,null,null,null,null,null,null,null,null,null,null,"x"]
[null,null,null,null,null,null,null,null,null,null,null,null,null,null,"x"]
[null,null,null,null,null,null,null,null,null,null,null,null,null,null,"x"]
[null,null,null,null,null,null,null,null,null,null,null,null,null,null,"x"]
[null,null,null,null,null,null,null,null,null,null,null,null,null,null,"x"]
[null,null,null,null,null,null,null,null,null,null,null,null,null,null,"x"]
[null,null,null,null,null,null,null,null,null,null,null,null,null,null,"x"]
[null,null,null,null,null,null,null,null,null,null,null,null,null,null,"x"]
[null,null,null,null,null,null,null,null,null,null,null,null,null,null,"x"]
[null,null,null,null,null,null,null,null,null,null,null,null,null,null,"x"]
[null,null,null,null,null,null,null,null,null,null,null,null,null,null,"x"]
[null,null,null,null,null,null,null,null,null,null,null,null,null,null,"x"]
[null,null,null,null,null,null,null,null,null,null,null,null,null,null,"x"]
[null,null,null,null,null,null,null,null,null,null,null,null,null,null,"x"]
[null,null,null,null,null,null,null,null,null,null,null,null,null,null,"x"]
[null,null,null,null,null,null,null,null,null,null,null,null,null,null,"x"]
[null,null,null,null,null,null,null,null,null,null,null,null,null,null,"x"]
[null,null,null,null,null,null,null,null,null,null,null,null,null,null,"x"]
[null,null,null,null,null,null,null,null,null,null,null,null,null,null,"x"]
[null,null,null,null,null,null,null,null,null,null,null,null,null,null,"x"]
[null,null,null,null,null,null,null,null,null,null,null,null,null,null,"x"]
[null,null,null,null,null,null,null,null,null,null,null,null,null,null,"x"]
[null,null,null,null,null,null,null,null,null,null,null,null,null,null,"x"]
[null,null,null,null,null,null,null,null,null,null,null,null,null,null,"x"]
[null,null,null,null,null,null,null,null,null,null,null,null,null,null,"x"]
[null,null,null,null,null,null,null,null,null,null,null,null,null,null,"x"]
[null,null,null,null,null,null,null,null,null,null,null,null,null,null,"x"]
[null,null,null,null,null,null,null,null,null,null,null,null,null,null,"x"]
[null,null,null,null,null,null,null,null,null,null,null,null,null,null,"x"]
[null,null,null,null,null,null,null,null,null,null,null,null,null,null,"x"]
[null,null,null,null,null,null,null,null,null,null,null,null,null,null,"x"]
[null,null,null,null,null,null,null,null,null,null,null,null,null,null,"x"]
[null,null,null,null,null,null,null,null,null,null,null,null,null,null,"x"]
[null,null,null,null,null,null,null,null,null,null,null,null,null,null,"x"]
[null,null,null,null,null,null,null,null,null,null,null,null,null,null,"x"]
[null,null,null,null,null,null,null,null,null,null,null,null,null,null,"x"]
[null,null,null,null,null,null,null,null,null,null,null,null,null,null,"x"]
[null,null,null,null,null,null,null,null,null,null,null,null,null,null,"x"]
[null,null,null,null,null,null,null,null,null,null,null,null,null,null,"x"]
[null,null,null,null,null,null,null,null,null,null,null,null,null,null,"x"]
[null,null,null,null,null,null,null,null,null,null,null,null,null,null,"x"]
[null,null,null,null,null,null,null,null,null,null,null,null,null,null,"x"]
[null,null,null,null,null,null,null,null,null,null,null,null,null,null,"x"]
[null,null,null,null,null,null,null,null,null,null,null,null,null,null,"x"]
[null,null,null,null,null,null,null,null,null,null,null,null,null,null,"x"]
[null,null,null,null,null,null,null,null,null,null,null,null,null,null,"x"]
[null,null,null,null,null,null,null,null,null,null,null,null,null,null,"x"]
[null,null,null,null,null,null,null,null,null,null,null,null,null,null,"x"]
[null,null,null,null,null,null,null,null,null,null,null,null,null,null,"x"]
[null,null,null,null,null,null,null,null,null,null,null,null,null,null,"x"]
[null,null,null,null,null,null,null,null,null,null,null,null,null,null,"x"]
[null,null,null,null,null,null,null,null,null,null,null,null,null,null,"x"]
[null,null,null,null,null,null,null,null,null,null,null,null,null,null,"x"]
[null,null,null,null,null,null,null,null,null,null,null,null,null,null,"x"]
[null,null,null,null,null,null,null,null,null,null,null,null,null,null,"x"]
[null,null,null,null,null,null,null,null,null,null,null,null,null,null,"x"]
[null,null,null,null,null,null,null,null,null,null,null,null,null,null,"x"]
[null,null,null,null,null,null,null,null,null,null,null,null,null,null,"x"]
[null,null,null,null,null,null,null,null,null,null,null,null,null,null,"x"]
[null,null,null,null,null,null,null,null,null,null,null,null,null,null,"x"]
[null,null,null,null,null,null,null,null,null,null,null,null,null,null,"x"]
[null,null,null,null,null,null,null,null,null,null,null,null,null,null,"x"]
[null,null,null,null,null,null,null,null,null,null,null,null,null,null,"x"]
[null,null,null,null,null,null,null,null,null,null,null,null,null,null,"x"]
[null,null,null,null,null,null,null,null,null,null,null,null,null,null,"x"]
[null,null,null,null,null,null,null,null,null,null,null,null,null,null,"x"]
[null,null,null,null,null,null,null,null,null,null,null,null,null,null,"x"]
[null,null,null,null,null,null,null,null,null,null,null,null,null,null,"x"]
[null,null,null,null,null,null,null,null,null,null,null,null,null,null,"x"]
[null,null,null,null,null,null,null,null,null,null,null,null,null,null,"x"]
[null,null,null,null,null,null,null,null,null,null,null,null,null,null,"x"]
[null,null,null,null,null,null,null,null,null,null,null,null,null,null,"x"]
[null,null,null,null,null,null,null,null,null,null,null,null,null,null,"x"]
[null,null,null,null,null,null,null,null,null,null,null,null,null,null,"x"]
[null,null,null,null,null,null,null,null,null,null,null,null,null,null,"x"]
[null,null,null,null,null,null,null,null,null,null,null,null,null,null,"x"]
[null,null,null,null,null,null,null,null,null,null,null,null,null,null,"x"]

{"sheet":"Confirm","index":9,"n_rows":10,"n_cols":2,"rows_kept":10,"cut":false,"hidden":false,"merged":[]}
[]
[null,"Episode Care Improvement Program (ECIP)"]
[null,"Participation Election Workbook"]
[]
[]
[null,"Care Redesign Section Complete"]
[]
[null,"Please review to ensure all care redesign interventions have been completely and accurately filled out before continuing."]
[]
[null,"Press the button below to generate the incentive payment worksheets"]

{"sheet":"Incentive Payments Bk","index":10,"n_rows":500,"n_cols":15,"rows_kept":500,"cut":false,"hidden":false,"merged":[[0,5,1,8],[7,4,7,12],[5,1,5,12]]}
[null,null,null,null,null,null,null,null,null,null,null,null,null,null,"x"]
[null,"Episode Care Improvement Program (ECIP)",null,null,null,null,null,null,null,null,null,null,null,null,"x"]
[null,"Use the buttons at right to navigate through the workbook",null,null,null,null,null,null,null,null,null,null,null,null,"x"]
[null,"Step 3: Incentive Payments",null,null,null,null,null,null,null,null,null,null,null,null,"x"]
[null,null,null,null,null,null,null,null,null,null,null,null,null,null,"x"]
[null,"For each care partner type within each episode category, set the weights for each condition of payment. By default, all weights are set equal - if this is acceptable, you may simply review and then hit 'Continue.' The weights for any given clinical episode category - care partner combination must equal 100%.",null,null,null,null,null,null,null,null,null,null,null,null,"x"]
[null,null,null,null,null,null,null,null,null,null,null,null,null,null,"x"]
[null,null,null,null,"CoP Weights",null,null,null,null,null,null,null,null,null,"x"]
[null,"Episode Family","Episode Category","Condition of Payment (copied from previous sheets, you may edit for clarity)","Physician","Nurse","PA","PT","SNF","HHA","LTCH","Hospice","IRF",null,"x"]
[null,"Cardiology",null,null,null,null,null,null,null,null,null,null,null,null,"x"]
[null,null,"AMI",null,1,1,1,1,1,1,1,1,1,null,"x"]
[null,null,null,null,{"$f":"SUM(E11:E11)","v":1},1,1,1,1,1,1,1,1,null,"x"]
[null,null,null,null,null,null,null,null,null,null,null,null,null,null,"x"]
[null,null,"Cardiac arrhythmia",null,1,1,1,1,1,1,1,1,1,null,"x"]
[null,null,null,null,{"$f":"SUM(E14:E14)","v":1},1,1,1,1,1,1,1,1,null,"x"]
[null,null,null,null,null,null,null,null,null,null,null,null,null,null,"x"]
[null,null,"Cardiac valve",null,1,1,1,1,1,1,1,1,1,null,"x"]
[null,null,null,null,{"$f":"SUM(E17:E17)","v":1},1,1,1,1,1,1,1,1,null,"x"]
[null,null,null,null,null,null,null,null,null,null,null,null,null,null,"x"]
[null,null,"Congestive heart failure",null,1,1,1,1,1,1,1,1,1,null,"x"]
[null,null,null,null,{"$f":"SUM(E20:E20)","v":1},1,1,1,1,1,1,1,1,null,"x"]
[null,null,null,null,null,null,null,null,null,null,null,null,null,null,"x"]
[null,null,"Coronary artery bypass graft",null,1,1,1,1,1,1,1,1,1,null,"x"]
[null,null,null,null,{"$f":"SUM(E23:E23)","v":1},1,1,1,1,1,1,1,1,null,"x"]
[null,null,null,null,null,null,null,null,null,null,null,null,null,null,"x"]
[null,null,"Pacemaker",null,1,1,1,1,1,1,1,1,1,null,"x"]
[null,null,null,null,{"$f":"SUM(E26:E26)","v":1},1,1,1,1,1,1,1,1,null,"x"]
[null,null,null,null,null,null,null,null,null,null,null,null,null,null,"x"]
[null,null,"Percutaneous coronary intervention",null,1,1,1,1,1,1,1,1,1,null,"x"]
[null,null,null,null,{"$f":"SUM(E29:E29)","v":1},1,1,1,1,1,1,1,1,null,"x"]
[null,null,null,null,null,null,null,null,null,null,null,null,null,null,"x"]
[null,null,"Stroke",null,1,1,1,1,1,1,1,1,1,null,"x"]
[null,null,null,null,{"$f":"SUM(E32:E32)","v":1},1,1,1,1,1,1,1,1,null,"x"]
[null,null,null,null,null,null,null,null,null,null,null,null,null,null,"x"]
[null,"General",null,null,null,null,null,null,null,null,null,null,null,null,"x"]
[null,null,"Cellulitis",null,1,1,1,1,1,1,1,1,1,null,"x"]
[null,null,null,null,{"$f":"SUM(E36:E36)","v":1},1,1,1,1,1,1,1,1,null,"x"]
[null,null,null,null,null,null,null,null,null,null,null,null,null,null,"x"]
[null,null,"COPD / asthma",null,1,1,1,1,1,1,1,1,1,null,"x"]
[null,null,null,null,{"$f":"SUM(E39:E39)","v":1},1,1,1,1,1,1,1,1,null,"x"]
[null,null,null,null,null,null,null,null,null,null,null,null,null,null,"x"]
[null,null,"Renal failure",null,1,1,1,1,1,1,1,1,1,null,"x"]
[null,null,null,null,{"$f":"SUM(E42:E42)","v":1},1,1,1,1,1,1,1,1,null,"x"]
[null,null,null,null,null,null,null,null,null,null,null,null,null,null,"x"]
[null,null,"Sepsis",null,1,1,1,1,1,1,1,1,1,null,"x"]
[null,null,null,null,{"$f":"SUM(E45:E45)","v":1},1,1,1,1,1,1,1,1,null,"x"]
[null,null,null,null,null,null,null,null,null,null,null,null,null,null,"x"]
[null,null,"Pneumonia / respiratory infections",null,1,1,1,1,1,1,1,1,1,null,"x"]
[null,null,null,null,{"$f":"SUM(E48:E48)","v":1},1,1,1,1,1,1,1,1,null,"x"]
[null,null,null,null,null,null,null,null,null,null,null,null,null,null,"x"]
[null,null,"Urinary tract infection",null,1,1,1,1,1,1,1,1,1,null,"x"]
[null,null,null,null,{"$f":"SUM(E51:E51)","v":1},1,1,1,1,1,1,1,1,null,"x"]
[null,null,null,null,null,null,null,null,null,null,null,null,null,null,"x"]
[null,"GI",null,null,null,null,null,null,null,null,null,null,null,null,"x"]
[null,null,"Gastrointestinal hemmorhage",null,1,1,1,1,1,1,1,1,1,null,"x"]
[null,null,null,null,{"$f":"SUM(E55:E55)","v":1},1,1,1,1,1,1,1,1,null,"x"]
[null,null,null,null,null,null,null,null,null,null,null,null,null,null,"x"]
[null,null,"Gastrointestinal obstruction",null,1,1,1,1,1,1,1,1,1,null,"x"]
[null,null,null,null,{"$f":"SUM(E58:E58)","v":1},1,1,1,1,1,1,1,1,null,"x"]
[null,null,null,null,null,null,null,null,null,null,null,null,null,null,"x"]
[null,null,"Major bowel procedure",null,1,1,1,1,1,1,1,1,1,null,"x"]
[null,null,null,null,{"$f":"SUM(E61:E61)","v":1},1,1,1,1,1,1,1,1,null,"x"]
[null,null,null,null,null,null,null,null,null,null,null,null,null,null,"x"]
[null,"Orthopedics",null,null,null,null,null,null,null,null,null,null,null,null,"x"]
[null,null,"Back and neck procedures",null,1,1,1,1,1,1,1,1,1,null,"x"]
[null,null,null,null,{"$f":"SUM(E65:E65)","v":1},1,1,1,1,1,1,1,1,null,"x"]
[null,null,null,null,null,null,null,null,null,null,null,null,null,null,"x"]
[null,null,"Spinal fusion procedures",null,1,1,1,1,1,1,1,1,1,null,"x"]
[null,null,null,null,{"$f":"SUM(E68:E68)","v":1},1,1,1,1,1,1,1,1,null,"x"]
[null,null,null,null,null,null,null,null,null,null,null,null,null,null,"x"]
[null,null,"Fractures, hip and femur",null,1,1,1,1,1,1,1,1,1,null,"x"]
[null,null,null,null,{"$f":"SUM(E71:E71)","v":1},1,1,1,1,1,1,1,1,null,"x"]
[null,null,null,null,null,null,null,null,null,null,null,null,null,null,"x"]
[null,null,"Other hip & femur procedures",null,1,1,1,1,1,1,1,1,1,null,"x"]
[null,null,null,null,{"$f":"SUM(E74:E74)","v":1},1,1,1,1,1,1,1,1,null,"x"]
[null,null,null,null,null,null,null,null,null,null,null,null,null,null,"x"]
[null,null,"Upper extremity replacement / Other lower extremity procedure",null,1,1,1,1,1,1,1,1,1,null,"x"]
[null,null,null,null,{"$f":"SUM(E77:E77)","v":1},1,1,1,1,1,1,1,1,null,"x"]
[null,null,null,null,null,null,null,null,null,null,null,null,null,null,"x"]
[null,null,"MJRLE / Double replacement",null,1,1,1,1,1,1,1,1,1,null,"x"]
[null,null,null,null,{"$f":"SUM(E80:E80)","v":1},1,1,1,1,1,1,1,1,null,"x"]
[null,null,null,null,null,null,null,null,null,null,null,null,null,null,"x"]
[null,null,null,null,null,null,null,null,null,null,null,null,null,null,"x"]
[null,null,null,null,null,null,null,null,null,null,null,null,null,null,"x"]
[null,null,null,null,null,null,null,null,null,null,null,null,null,null,"x"]
[null,null,null,null,null,null,null,null,null,null,null,null,null,null,"x"]
[null,null,null,null,null,null,null,null,null,null,null,null,null,null,"x"]
[null,null,null,null,null,null,null,null,null,null,null,null,null,null,"x"]
[null,null,null,null,null,null,null,null,null,null,null,null,null,null,"x"]
[null,null,null,null,null,null,null,null,null,null,null,null,null,null,"x"]
[null,null,null,null,null,null,null,null,null,null,null,null,null,null,"x"]
[null,null,null,null,null,null,null,null,null,null,null,null,null,null,"x"]
[null,null,null,null,null,null,null,null,null,null,null,null,null,null,"x"]
[null,null,null,null,null,null,null,null,null,null,null,null,null,null,"x"]
[null,null,null,null,null,null,null,null,null,null,null,null,null,null,"x"]
[null,null,null,null,null,null,null,null,null,null,null,null,null,null,"x"]
[null,null,null,null,null,null,null,null,null,null,null,null,null,null,"x"]
[null,null,null,null,null,null,null,null,null,null,null,null,null,null,"x"]
[null,null,null,null,null,null,null,null,null,null,null,null,null,null,"x"]
[null,null,null,null,null,null,null,null,null,null,null,null,null,null,"x"]
[null,null,null,null,null,null,null,null,null,null,null,null,null,null,"x"]
[null,null,null,null,null,null,null,null,null,null,null,null,null,null,"x"]
[null,null,null,null,null,null,null,null,null,null,null,null,null,null,"x"]
[null,null,null,null,null,null,null,null,null,null,null,null,null,null,"x"]
[null,null,null,null,null,null,null,null,null,null,null,null,null,null,"x"]
[null,null,null,null,null,null,null,null,null,null,null,null,null,null,"x"]
[null,null,null,null,null,null,null,null,null,null,null,null,null,null,"x"]
[null,null,null,null,null,null,null,null,null,null,null,null,null,null,"x"]
[null,null,null,null,null,null,null,null,null,null,null,null,null,null,"x"]
[null,null,null,null,null,null,null,null,null,null,null,null,null,null,"x"]
[null,null,null,null,null,null,null,null,null,null,null,null,null,null,"x"]
[null,null,null,null,null,null,null,null,null,null,null,null,null,null,"x"]
[null,null,null,null,null,null,null,null,null,null,null,null,null,null,"x"]
[null,null,null,null,null,null,null,null,null,null,null,null,null,null,"x"]
[null,null,null,null,null,null,null,null,null,null,null,null,null,null,"x"]
[null,null,null,null,null,null,null,null,null,null,null,null,null,null,"x"]
[null,null,null,null,null,null,null,null,null,null,null,null,null,null,"x"]
[null,null,null,null,null,null,null,null,null,null,null,null,null,null,"x"]
[null,null,null,null,null,null,null,null,null,null,null,null,null,null,"x"]
[null,null,null,null,null,null,null,null,null,null,null,null,null,null,"x"]
[null,null,null,null,null,null,null,null,null,null,null,null,null,null,"x"]
[null,null,null,null,null,null,null,null,null,null,null,null,null,null,"x"]
[null,null,null,null,null,null,null,null,null,null,null,null,null,null,"x"]
[null,null,null,null,null,null,null,null,null,null,null,null,null,null,"x"]
[null,null,null,null,null,null,null,null,null,null,null,null,null,null,"x"]
[null,null,null,null,null,null,null,null,null,null,null,null,null,null,"x"]
[null,null,null,null,null,null,null,null,null,null,null,null,null,null,"x"]
[null,null,null,null,null,null,null,null,null,null,null,null,null,null,"x"]
[null,null,null,null,null,null,null,null,null,null,null,null,null,null,"x"]
[null,null,null,null,null,null,null,null,null,null,null,null,null,null,"x"]
[null,null,null,null,null,null,null,null,null,null,null,null,null,null,"x"]
[null,null,null,null,null,null,null,null,null,null,null,null,null,null,"x"]
[null,null,null,null,null,null,null,null,null,null,null,null,null,null,"x"]
[null,null,null,null,null,null,null,null,null,null,null,null,null,null,"x"]
[null,null,null,null,null,null,null,null,null,null,null,null,null,null,"x"]
[null,null,null,null,null,null,null,null,null,null,null,null,null,null,"x"]
[null,null,null,null,null,null,null,null,null,null,null,null,null,null,"x"]
[null,null,null,null,null,null,null,null,null,null,null,null,null,null,"x"]
[null,null,null,null,null,null,null,null,null,null,null,null,null,null,"x"]
[null,null,null,null,null,null,null,null,null,null,null,null,null,null,"x"]
[null,null,null,null,null,null,null,null,null,null,null,null,null,null,"x"]
[null,null,null,null,null,null,null,null,null,null,null,null,null,null,"x"]
[null,null,null,null,null,null,null,null,null,null,null,null,null,null,"x"]
[null,null,null,null,null,null,null,null,null,null,null,null,null,null,"x"]
[null,null,null,null,null,null,null,null,null,null,null,null,null,null,"x"]
[null,null,null,null,null,null,null,null,null,null,null,null,null,null,"x"]
[null,null,null,null,null,null,null,null,null,null,null,null,null,null,"x"]
[null,null,null,null,null,null,null,null,null,null,null,null,null,null,"x"]
[null,null,null,null,null,null,null,null,null,null,null,null,null,null,"x"]
[null,null,null,null,null,null,null,null,null,null,null,null,null,null,"x"]
[null,null,null,null,null,null,null,null,null,null,null,null,null,null,"x"]
[null,null,null,null,null,null,null,null,null,null,null,null,null,null,"x"]
[null,null,null,null,null,null,null,null,null,null,null,null,null,null,"x"]
[null,null,null,null,null,null,null,null,null,null,null,null,null,null,"x"]
[null,null,null,null,null,null,null,null,null,null,null,null,null,null,"x"]
[null,null,null,null,null,null,null,null,null,null,null,null,null,null,"x"]
[null,null,null,null,null,null,null,null,null,null,null,null,null,null,"x"]
[null,null,null,null,null,null,null,null,null,null,null,null,null,null,"x"]
[null,null,null,null,null,null,null,null,null,null,null,null,null,null,"x"]
[null,null,null,null,null,null,null,null,null,null,null,null,null,null,"x"]
[null,null,null,null,null,null,null,null,null,null,null,null,null,null,"x"]
[null,null,null,null,null,null,null,null,null,null,null,null,null,null,"x"]
[null,null,null,null,null,null,null,null,null,null,null,null,null,null,"x"]
[null,null,null,null,null,null,null,null,null,null,null,null,null,null,"x"]
[null,null,null,null,null,null,null,null,null,null,null,null,null,null,"x"]
[null,null,null,null,null,null,null,null,null,null,null,null,null,null,"x"]
[null,null,null,null,null,null,null,null,null,null,null,null,null,null,"x"]
[null,null,null,null,null,null,null,null,null,null,null,null,null,null,"x"]
[null,null,null,null,null,null,null,null,null,null,null,null,null,null,"x"]
[null,null,null,null,null,null,null,null,null,null,null,null,null,null,"x"]
[null,null,null,null,null,null,null,null,null,null,null,null,null,null,"x"]
[null,null,null,null,null,null,null,null,null,null,null,null,null,null,"x"]
[null,null,null,null,null,null,null,null,null,null,null,null,null,null,"x"]
[null,null,null,null,null,null,null,null,null,null,null,null,null,null,"x"]
[null,null,null,null,null,null,null,null,null,null,null,null,null,null,"x"]
[null,null,null,null,null,null,null,null,null,null,null,null,null,null,"x"]
[null,null,null,null,null,null,null,null,null,null,null,null,null,null,"x"]
[null,null,null,null,null,null,null,null,null,null,null,null,null,null,"x"]
[null,null,null,null,null,null,null,null,null,null,null,null,null,null,"x"]
[null,null,null,null,null,null,null,null,null,null,null,null,null,null,"x"]
[null,null,null,null,null,null,null,null,null,null,null,null,null,null,"x"]
[null,null,null,null,null,null,null,null,null,null,null,null,null,null,"x"]
[null,null,null,null,null,null,null,null,null,null,null,null,null,null,"x"]
[null,null,null,null,null,null,null,null,null,null,null,null,null,null,"x"]
[null,null,null,null,null,null,null,null,null,null,null,null,null,null,"x"]
[null,null,null,null,null,null,null,null,null,null,null,null,null,null,"x"]
[null,null,null,null,null,null,null,null,null,null,null,null,null,null,"x"]
[null,null,null,null,null,null,null,null,null,null,null,null,null,null,"x"]
[null,null,null,null,null,null,null,null,null,null,null,null,null,null,"x"]
[null,null,null,null,null,null,null,null,null,null,null,null,null,null,"x"]
[null,null,null,null,null,null,null,null,null,null,null,null,null,null,"x"]
[null,null,null,null,null,null,null,null,null,null,null,null,null,null,"x"]
[null,null,null,null,null,null,null,null,null,null,null,null,null,null,"x"]
[null,null,null,null,null,null,null,null,null,null,null,null,null,null,"x"]
[null,null,null,null,null,null,null,null,null,null,null,null,null,null,"x"]
[null,null,null,null,null,null,null,null,null,null,null,null,null,null,"x"]
[null,null,null,null,null,null,null,null,null,null,null,null,null,null,"x"]
[null,null,null,null,null,null,null,null,null,null,null,null,null,null,"x"]
[null,null,null,null,null,null,null,null,null,null,null,null,null,null,"x"]
[null,null,null,null,null,null,null,null,null,null,null,null,null,null,"x"]
[null,null,null,null,null,null,null,null,null,null,null,null,null,null,"x"]
[null,null,null,null,null,null,null,null,null,null,null,null,null,null,"x"]
[null,null,null,null,null,null,null,null,null,null,null,null,null,null,"x"]
[null,null,null,null,null,null,null,null,null,null,null,null,null,null,"x"]
[null,null,null,null,null,null,null,null,null,null,null,null,null,null,"x"]
[null,null,null,null,null,null,null,null,null,null,null,null,null,null,"x"]
[null,null,null,null,null,null,null,null,null,null,null,null,null,null,"x"]
[null,null,null,null,null,null,null,null,null,null,null,null,null,null,"x"]
[null,null,null,null,null,null,null,null,null,null,null,null,null,null,"x"]
[null,null,null,null,null,null,null,null,null,null,null,null,null,null,"x"]
[null,null,null,null,null,null,null,null,null,null,null,null,null,null,"x"]
[null,null,null,null,null,null,null,null,null,null,null,null,null,null,"x"]
[null,null,null,null,null,null,null,null,null,null,null,null,null,null,"x"]
[null,null,null,null,null,null,null,null,null,null,null,null,null,null,"x"]
[null,null,null,null,null,null,null,null,null,null,null,null,null,null,"x"]
[null,null,null,null,null,null,null,null,null,null,null,null,null,null,"x"]
[null,null,null,null,null,null,null,null,null,null,null,null,null,null,"x"]
[null,null,null,null,null,null,null,null,null,null,null,null,null,null,"x"]
[null,null,null,null,null,null,null,null,null,null,null,null,null,null,"x"]
[null,null,null,null,null,null,null,null,null,null,null,null,null,null,"x"]
[null,null,null,null,null,null,null,null,null,null,null,null,null,null,"x"]
[null,null,null,null,null,null,null,null,null,null,null,null,null,null,"x"]
[null,null,null,null,null,null,null,null,null,null,null,null,null,null,"x"]
[null,null,null,null,null,null,null,null,null,null,null,null,null,null,"x"]
[null,null,null,null,null,null,null,null,null,null,null,null,null,null,"x"]
[null,null,null,null,null,null,null,null,null,null,null,null,null,null,"x"]
[null,null,null,null,null,null,null,null,null,null,null,null,null,null,"x"]
[null,null,null,null,null,null,null,null,null,null,null,null,null,null,"x"]
[null,null,null,null,null,null,null,null,null,null,null,null,null,null,"x"]
[null,null,null,null,null,null,null,null,null,null,null,null,null,null,"x"]
[null,null,null,null,null,null,null,null,null,null,null,null,null,null,"x"]
[null,null,null,null,null,null,null,null,null,null,null,null,null,null,"x"]
[null,null,null,null,null,null,null,null,null,null,null,null,null,null,"x"]
[null,null,null,null,null,null,null,null,null,null,null,null,null,null,"x"]
[null,null,null,null,null,null,null,null,null,null,null,null,null,null,"x"]
[null,null,null,null,null,null,null,null,null,null,null,null,null,null,"x"]
[null,null,null,null,null,null,null,null,null,null,null,null,null,null,"x"]
[null,null,null,null,null,null,null,null,null,null,null,null,null,null,"x"]
[null,null,null,null,null,null,null,null,null,null,null,null,null,null,"x"]
[null,null,null,null,null,null,null,null,null,null,null,null,null,null,"x"]
[null,null,null,null,null,null,null,null,null,null,null,null,null,null,"x"]
[null,null,null,null,null,null,null,null,null,null,null,null,null,null,"x"]
[null,null,null,null,null,null,null,null,null,null,null,null,null,null,"x"]
[null,null,null,null,null,null,null,null,null,null,null,null,null,null,"x"]
[null,null,null,null,null,null,null,null,null,null,null,null,null,null,"x"]
[null,null,null,null,null,null,null,null,null,null,null,null,null,null,"x"]
[null,null,null,null,null,null,null,null,null,null,null,null,null,null,"x"]
[null,null,null,null,null,null,null,null,null,null,null,null,null,null,"x"]
[null,null,null,null,null,null,null,null,null,null,null,null,null,null,"x"]
[null,null,null,null,null,null,null,null,null,null,null,null,null,null,"x"]
[null,null,null,null,null,null,null,null,null,null,null,null,null,null,"x"]
[null,null,null,null,null,null,null,null,null,null,null,null,null,null,"x"]
[null,null,null,null,null,null,null,null,null,null,null,null,null,null,"x"]
[null,null,null,null,null,null,null,null,null,null,null,null,null,null,"x"]
[null,null,null,null,null,null,null,null,null,null,null,null,null,null,"x"]
[null,null,null,null,null,null,null,null,null,null,null,null,null,null,"x"]
[null,null,null,null,null,null,null,null,null,null,null,null,null,null,"x"]
[null,null,null,null,null,null,null,null,null,null,null,null,null,null,"x"]
[null,null,null,null,null,null,null,null,null,null,null,null,null,null,"x"]
[null,null,null,null,null,null,null,null,null,null,null,null,null,null,"x"]
[null,null,null,null,null,null,null,null,null,null,null,null,null,null,"x"]
[null,null,null,null,null,null,null,null,null,null,null,null,null,null,"x"]
[null,null,null,null,null,null,null,null,null,null,null,null,null,null,"x"]
[null,null,null,null,null,null,null,null,null,null,null,null,null,null,"x"]
[null,null,null,null,null,null,null,null,null,null,null,null,null,null,"x"]
[null,null,null,null,null,null,null,null,null,null,null,null,null,null,"x"]
[null,null,null,null,null,null,null,null,null,null,null,null,null,null,"x"]
[null,null,null,null,null,null,null,null,null,null,null,null,null,null,"x"]
[null,null,null,null,null,null,null,null,null,null,null,null,null,null,"x"]
[null,null,null,null,null,null,null,null,null,null,null,null,null,null,"x"]
[null,null,null,null,null,null,null,null,null,null,null,null,null,null,"x"]
[null,null,null,null,null,null,null,null,null,null,null,null,null,null,"x"]
[null,null,null,null,null,null,null,null,null,null,null,null,null,null,"x"]
[null,null,null,null,null,null,null,null,null,null,null,null,null,null,"x"]
[null,null,null,null,null,null,null,null,null,null,null,null,null,null,"x"]
[null,null,null,null,null,null,null,null,null,null,null,null,null,null,"x"]
[null,null,null,null,null,null,null,null,null,null,null,null,null,null,"x"]
[null,null,null,null,null,null,null,null,null,null,null,null,null,null,"x"]
[null,null,null,null,null,null,null,null,null,null,null,null,null,null,"x"]
[null,null,null,null,null,null,null,null,null,null,null,null,null,null,"x"]
[null,null,null,null,null,null,null,null,null,null,null,null,null,null,"x"]
[null,null,null,null,null,null,null,null,null,null,null,null,null,null,"x"]
[null,null,null,null,null,null,null,null,null,null,null,null,null,null,"x"]
[null,null,null,null,null,null,null,null,null,null,null,null,null,null,"x"]
[null,null,null,null,null,null,null,null,null,null,null,null,null,null,"x"]
[null,null,null,null,null,null,null,null,null,null,null,null,null,null,"x"]
[null,null,null,null,null,null,null,null,null,null,null,null,null,null,"x"]
[null,null,null,null,null,null,null,null,null,null,null,null,null,null,"x"]
[null,null,null,null,null,null,null,null,null,null,null,null,null,null,"x"]
[null,null,null,null,null,null,null,null,null,null,null,null,null,null,"x"]
[null,null,null,null,null,null,null,null,null,null,null,null,null,null,"x"]
[null,null,null,null,null,null,null,null,null,null,null,null,null,null,"x"]
[null,null,null,null,null,null,null,null,null,null,null,null,null,null,"x"]
[null,null,null,null,null,null,null,null,null,null,null,null,null,null,"x"]
[null,null,null,null,null,null,null,null,null,null,null,null,null,null,"x"]
[null,null,null,null,null,null,null,null,null,null,null,null,null,null,"x"]
[null,null,null,null,null,null,null,null,null,null,null,null,null,null,"x"]
[null,null,null,null,null,null,null,null,null,null,null,null,null,null,"x"]
[null,null,null,null,null,null,null,null,null,null,null,null,null,null,"x"]
[null,null,null,null,null,null,null,null,null,null,null,null,null,null,"x"]
[null,null,null,null,null,null,null,null,null,null,null,null,null,null,"x"]
[null,null,null,null,null,null,null,null,null,null,null,null,null,null,"x"]
[null,null,null,null,null,null,null,null,null,null,null,null,null,null,"x"]
[null,null,null,null,null,null,null,null,null,null,null,null,null,null,"x"]
[null,null,null,null,null,null,null,null,null,null,null,null,null,null,"x"]
[null,null,null,null,null,null,null,null,null,null,null,null,null,null,"x"]
[null,null,null,null,null,null,null,null,null,null,null,null,null,null,"x"]
[null,null,null,null,null,null,null,null,null,null,null,null,null,null,"x"]
[null,null,null,null,null,null,null,null,null,null,null,null,null,null,"x"]
[null,null,null,null,null,null,null,null,null,null,null,null,null,null,"x"]
[null,null,null,null,null,null,null,null,null,null,null,null,null,null,"x"]
[null,null,null,null,null,null,null,null,null,null,null,null,null,null,"x"]
[null,null,null,null,null,null,null,null,null,null,null,null,null,null,"x"]
[null,null,null,null,null,null,null,null,null,null,null,null,null,null,"x"]
[null,null,null,null,null,null,null,null,null,null,null,null,null,null,"x"]
[null,null,null,null,null,null,null,null,null,null,null,null,null,null,"x"]
[null,null,null,null,null,null,null,null,null,null,null,null,null,null,"x"]
[null,null,null,null,null,null,null,null,null,null,null,null,null,null,"x"]
[null,null,null,null,null,null,null,null,null,null,null,null,null,null,"x"]
[null,null,null,null,null,null,null,null,null,null,null,null,null,null,"x"]
[null,null,null,null,null,null,null,null,null,null,null,null,null,null,"x"]
[null,null,null,null,null,null,null,null,null,null,null,null,null,null,"x"]
[null,null,null,null,null,null,null,null,null,null,null,null,null,null,"x"]
[null,null,null,null,null,null,null,null,null,null,null,null,null,null,"x"]
[null,null,null,null,null,null,null,null,null,null,null,null,null,null,"x"]
[null,null,null,null,null,null,null,null,null,null,null,null,null,null,"x"]
[null,null,null,null,null,null,null,null,null,null,null,null,null,null,"x"]
[null,null,null,null,null,null,null,null,null,null,null,null,null,null,"x"]
[null,null,null,null,null,null,null,null,null,null,null,null,null,null,"x"]
[null,null,null,null,null,null,null,null,null,null,null,null,null,null,"x"]
[null,null,null,null,null,null,null,null,null,null,null,null,null,null,"x"]
[null,null,null,null,null,null,null,null,null,null,null,null,null,null,"x"]
[null,null,null,null,null,null,null,null,null,null,null,null,null,null,"x"]
[null,null,null,null,null,null,null,null,null,null,null,null,null,null,"x"]
[null,null,null,null,null,null,null,null,null,null,null,null,null,null,"x"]
[null,null,null,null,null,null,null,null,null,null,null,null,null,null,"x"]
[null,null,null,null,null,null,null,null,null,null,null,null,null,null,"x"]
[null,null,null,null,null,null,null,null,null,null,null,null,null,null,"x"]
[null,null,null,null,null,null,null,null,null,null,null,null,null,null,"x"]
[null,null,null,null,null,null,null,null,null,null,null,null,null,null,"x"]
[null,null,null,null,null,null,null,null,null,null,null,null,null,null,"x"]
[null,null,null,null,null,null,null,null,null,null,null,null,null,null,"x"]
[null,null,null,null,null,null,null,null,null,null,null,null,null,null,"x"]
[null,null,null,null,null,null,null,null,null,null,null,null,null,null,"x"]
[null,null,null,null,null,null,null,null,null,null,null,null,null,null,"x"]
[null,null,null,null,null,null,null,null,null,null,null,null,null,null,"x"]
[null,null,null,null,null,null,null,null,null,null,null,null,null,null,"x"]
[null,null,null,null,null,null,null,null,null,null,null,null,null,null,"x"]
[null,null,null,null,null,null,null,null,null,null,null,null,null,null,"x"]
[null,null,null,null,null,null,null,null,null,null,null,null,null,null,"x"]
[null,null,null,null,null,null,null,null,null,null,null,null,null,null,"x"]
[null,null,null,null,null,null,null,null,null,null,null,null,null,null,"x"]
[null,null,null,null,null,null,null,null,null,null,null,null,null,null,"x"]
[null,null,null,null,null,null,null,null,null,null,null,null,null,null,"x"]
[null,null,null,null,null,null,null,null,null,null,null,null,null,null,"x"]
[null,null,null,null,null,null,null,null,null,null,null,null,null,null,"x"]
[null,null,null,null,null,null,null,null,null,null,null,null,null,null,"x"]
[null,null,null,null,null,null,null,null,null,null,null,null,null,null,"x"]
[null,null,null,null,null,null,null,null,null,null,null,null,null,null,"x"]
[null,null,null,null,null,null,null,null,null,null,null,null,null,null,"x"]
[null,null,null,null,null,null,null,null,null,null,null,null,null,null,"x"]
[null,null,null,null,null,null,null,null,null,null,null,null,null,null,"x"]
[null,null,null,null,null,null,null,null,null,null,null,null,null,null,"x"]
[null,null,null,null,null,null,null,null,null,null,null,null,null,null,"x"]
[null,null,null,null,null,null,null,null,null,null,null,null,null,null,"x"]
[null,null,null,null,null,null,null,null,null,null,null,null,null,null,"x"]
[null,null,null,null,null,null,null,null,null,null,null,null,null,null,"x"]
[null,null,null,null,null,null,null,null,null,null,null,null,null,null,"x"]
[null,null,null,null,null,null,null,null,null,null,null,null,null,null,"x"]
[null,null,null,null,null,null,null,null,null,null,null,null,null,null,"x"]
[null,null,null,null,null,null,null,null,null,null,null,null,null,null,"x"]
[null,null,null,null,null,null,null,null,null,null,null,null,null,null,"x"]
[null,null,null,null,null,null,null,null,null,null,null,null,null,null,"x"]
[null,null,null,null,null,null,null,null,null,null,null,null,null,null,"x"]
[null,null,null,null,null,null,null,null,null,null,null,null,null,null,"x"]
[null,null,null,null,null,null,null,null,null,null,null,null,null,null,"x"]
[null,null,null,null,null,null,null,null,null,null,null,null,null,null,"x"]
[null,null,null,null,null,null,null,null,null,null,null,null,null,null,"x"]
[null,null,null,null,null,null,null,null,null,null,null,null,null,null,"x"]
[null,null,null,null,null,null,null,null,null,null,null,null,null,null,"x"]
[null,null,null,null,null,null,null,null,null,null,null,null,null,null,"x"]
[null,null,null,null,null,null,null,null,null,null,null,null,null,null,"x"]
[null,null,null,null,null,null,null,null,null,null,null,null,null,null,"x"]
[null,null,null,null,null,null,null,null,null,null,null,null,null,null,"x"]
[null,null,null,null,null,null,null,null,null,null,null,null,null,null,"x"]
[null,null,null,null,null,null,null,null,null,null,null,null,null,null,"x"]
[null,null,null,null,null,null,null,null,null,null,null,null,null,null,"x"]
[null,null,null,null,null,null,null,null,null,null,null,null,null,null,"x"]
[null,null,null,null,null,null,null,null,null,null,null,null,null,null,"x"]
[null,null,null,null,null,null,null,null,null,null,null,null,null,null,"x"]
[null,null,null,null,null,null,null,null,null,null,null,null,null,null,"x"]
[null,null,null,null,null,null,null,null,null,null,null,null,null,null,"x"]
[null,null,null,null,null,null,null,null,null,null,null,null,null,null,"x"]
[null,null,null,null,null,null,null,null,null,null,null,null,null,null,"x"]
[null,null,null,null,null,null,null,null,null,null,null,null,null,null,"x"]
[null,null,null,null,null,null,null,null,null,null,null,null,null,null,"x"]
[null,null,null,null,null,null,null,null,null,null,null,null,null,null,"x"]
[null,null,null,null,null,null,null,null,null,null,null,null,null,null,"x"]
[null,null,null,null,null,null,null,null,null,null,null,null,null,null,"x"]
[null,null,null,null,null,null,null,null,null,null,null,null,null,null,"x"]
[null,null,null,null,null,null,null,null,null,null,null,null,null,null,"x"]
[null,null,null,null,null,null,null,null,null,null,null,null,null,null,"x"]
[null,null,null,null,null,null,null,null,null,null,null,null,null,null,"x"]
[null,null,null,null,null,null,null,null,null,null,null,null,null,null,"x"]
[null,null,null,null,null,null,null,null,null,null,null,null,null,null,"x"]
[null,null,null,null,null,null,null,null,null,null,null,null,null,null,"x"]
[null,null,null,null,null,null,null,null,null,null,null,null,null,null,"x"]
[null,null,null,null,null,null,null,null,null,null,null,null,null,null,"x"]
[null,null,null,null,null,null,null,null,null,null,null,null,null,null,"x"]
[null,null,null,null,null,null,null,null,null,null,null,null,null,null,"x"]
[null,null,null,null,null,null,null,null,null,null,null,null,null,null,"x"]
[null,null,null,null,null,null,null,null,null,null,null,null,null,null,"x"]
[null,null,null,null,null,null,null,null,null,null,null,null,null,null,"x"]
[null,null,null,null,null,null,null,null,null,null,null,null,null,null,"x"]
[null,null,null,null,null,null,null,null,null,null,null,null,null,null,"x"]
[null,null,null,null,null,null,null,null,null,null,null,null,null,null,"x"]
[null,null,null,null,null,null,null,null,null,null,null,null,null,null,"x"]
[null,null,null,null,null,null,null,null,null,null,null,null,null,null,"x"]
[null,null,null,null,null,null,null,null,null,null,null,null,null,null,"x"]
[null,null,null,null,null,null,null,null,null,null,null,null,null,null,"x"]
[null,null,null,null,null,null,null,null,null,null,null,null,null,null,"x"]
[null,null,null,null,null,null,null,null,null,null,null,null,null,null,"x"]
[null,null,null,null,null,null,null,null,null,null,null,null,null,null,"x"]
[null,null,null,null,null,null,null,null,null,null,null,null,null,null,"x"]
[null,null,null,null,null,null,null,null,null,null,null,null,null,null,"x"]
[null,null,null,null,null,null,null,null,null,null,null,null,null,null,"x"]
[null,null,null,null,null,null,null,null,null,null,null,null,null,null,"x"]
[null,null,null,null,null,null,null,null,null,null,null,null,null,null,"x"]
[null,null,null,null,null,null,null,null,null,null,null,null,null,null,"x"]
[null,null,null,null,null,null,null,null,null,null,null,null,null,null,"x"]
[null,null,null,null,null,null,null,null,null,null,null,null,null,null,"x"]
[null,null,null,null,null,null,null,null,null,null,null,null,null,null,"x"]
[null,null,null,null,null,null,null,null,null,null,null,null,null,null,"x"]
[null,null,null,null,null,null,null,null,null,null,null,null,null,null,"x"]
[null,null,null,null,null,null,null,null,null,null,null,null,null,null,"x"]
[null,null,null,null,null,null,null,null,null,null,null,null,null,null,"x"]
[null,null,null,null,null,null,null,null,null,null,null,null,null,null,"x"]
[null,null,null,null,null,null,null,null,null,null,null,null,null,null,"x"]
[null,null,null,null,null,null,null,null,null,null,null,null,null,null,"x"]
[null,null,null,null,null,null,null,null,null,null,null,null,null,null,"x"]
[null,null,null,null,null,null,null,null,null,null,null,null,null,null,"x"]
[null,null,null,null,null,null,null,null,null,null,null,null,null,null,"x"]
[null,null,null,null,null,null,null,null,null,null,null,null,null,null,"x"]
[null,null,null,null,null,null,null,null,null,null,null,null,null,null,"x"]
[null,null,null,null,null,null,null,null,null,null,null,null,null,null,"x"]
[null,null,null,null,null,null,null,null,null,null,null,null,null,null,"x"]
[null,null,null,null,null,null,null,null,null,null,null,null,null,null,"x"]
[null,null,null,null,null,null,null,null,null,null,null,null,null,null,"x"]
[null,null,null,null,null,null,null,null,null,null,null,null,null,null,"x"]
[null,null,null,null,null,null,null,null,null,null,null,null,null,null,"x"]
[null,null,null,null,null,null,null,null,null,null,null,null,null,null,"x"]
[null,null,null,null,null,null,null,null,null,null,null,null,null,null,"x"]
[null,null,null,null,null,null,null,null,null,null,null,null,null,null,"x"]
[null,null,null,null,null,null,null,null,null,null,null,null,null,null,"x"]
[null,null,null,null,null,null,null,null,null,null,null,null,null,null,"x"]
[null,null,null,null,null,null,null,null,null,null,null,null,null,null,"x"]
[null,null,null,null,null,null,null,null,null,null,null,null,null,null,"x"]
[null,null,null,null,null,null,null,null,null,null,null,null,null,null,"x"]
[null,null,null,null,null,null,null,null,null,null,null,null,null,null,"x"]
[null,null,null,null,null,null,null,null,null,null,null,null,null,null,"x"]
[null,null,null,null,null,null,null,null,null,null,null,null,null,null,"x"]
[null,null,null,null,null,null,null,null,null,null,null,null,null,null,"x"]
[null,null,null,null,null,null,null,null,null,null,null,null,null,null,"x"]
[null,null,null,null,null,null,null,null,null,null,null,null,null,null,"x"]
[null,null,null,null,null,null,null,null,null,null,null,null,null,null,"x"]
[null,null,null,null,null,null,null,null,null,null,null,null,null,null,"x"]
[null,null,null,null,null,null,null,null,null,null,null,null,null,null,"x"]
[null,null,null,null,null,null,null,null,null,null,null,null,null,null,"x"]
[null,null,null,null,null,null,null,null,null,null,null,null,null,null,"x"]
[null,null,null,null,null,null,null,null,null,null,null,null,null,null,"x"]
[null,null,null,null,null,null,null,null,null,null,null,null,null,null,"x"]
[null,null,null,null,null,null,null,null,null,null,null,null,null,null,"x"]
[null,null,null,null,null,null,null,null,null,null,null,null,null,null,"x"]
[null,null,null,null,null,null,null,null,null,null,null,null,null,null,"x"]
[null,null,null,null,null,null,null,null,null,null,null,null,null,null,"x"]
[null,null,null,null,null,null,null,null,null,null,null,null,null,null,"x"]
[null,null,null,null,null,null,null,null,null,null,null,null,null,null,"x"]
[null,null,null,null,null,null,null,null,null,null,null,null,null,null,"x"]
[null,null,null,null,null,null,null,null,null,null,null,null,null,null,"x"]
[null,null,null,null,null,null,null,null,null,null,null,null,null,null,"x"]
[null,null,null,null,null,null,null,null,null,null,null,null,null,null,"x"]
[null,null,null,null,null,null,null,null,null,null,null,null,null,null,"x"]
[null,null,null,null,null,null,null,null,null,null,null,null,null,null,"x"]
[null,null,null,null,null,null,null,null,null,null,null,null,null,null,"x"]
[null,null,null,null,null,null,null,null,null,null,null,null,null,null,"x"]
[null,null,null,null,null,null,null,null,null,null,null,null,null,null,"x"]
[null,null,null,null,null,null,null,null,null,null,null,null,null,null,"x"]
[null,null,null,null,null,null,null,null,null,null,null,null,null,null,"x"]
[null,null,null,null,null,null,null,null,null,null,null,null,null,null,"x"]
[null,null,null,null,null,null,null,null,null,null,null,null,null,null,"x"]
[null,null,null,null,null,null,null,null,null,null,null,null,null,null,"x"]
[null,null,null,null,null,null,null,null,null,null,null,null,null,null,"x"]
[null,null,null,null,null,null,null,null,null,null,null,null,null,null,"x"]
[null,null,null,null,null,null,null,null,null,null,null,null,null,null,"x"]
[null,null,null,null,null,null,null,null,null,null,null,null,null,null,"x"]
[null,null,null,null,null,null,null,null,null,null,null,null,null,null,"x"]
[null,null,null,null,null,null,null,null,null,null,null,null,null,null,"x"]
[null,null,null,null,null,null,null,null,null,null,null,null,null,null,"x"]
[null,null,null,null,null,null,null,null,null,null,null,null,null,null,"x"]
[null,null,null,null,null,null,null,null,null,null,null,null,null,null,"x"]

{"sheet":"Complete","index":11,"n_rows":6,"n_cols":2,"rows_kept":6,"cut":false,"hidden":false,"merged":[[5,1,5,15]]}
[]
[null,"Episode Care Improvement Program (ECIP)"]
[null,"Participation Election Workbook"]
[]
[]
[null,"Thank you for completing the ECIP participation election workbook. Please ensure the workbook and attached Word document are completely filled out and email to care.redesign@crisphealth.org with the subject line \"ECIP IP Track Template 2019\""]